Cogmind - Beta 17 @@@ ROGUE MODE // 2026.07.10 @ 15:12:21 Player: H3-MLN Result: Assimilated 0b10! Performance ------------- Evolutions (9) 4500 Regions Visited (31) 6200 Robots Destroyed (184) 920 Value Destroyed (14751) 14751 Prototype IDs (60) 1200 Alien Tech Used (0) 0 Bonus (54901) 54901 TOTAL SCORE: 82472 Bonus ------- Triggered High Security 500 High Alert Combat Kills 1938 Follower Combat Kills 13263 Prayed to X0-1V1 5000 Major X0-1V1 Interference 15200 Entered Garrisons 2200 Used RIF Installer 6500 Aligned with FarCom 300 Met MAIN.C 5000 Used 0b10 Conduit 2000 Win 3000 Cogmind --------- Core Integrity 735/1680 Matter 650/900 Energy 442/1200 System Corruption 1% Temperature Cool (1) Movement Flying (40) Location 0b10 Command Parts ------- > --- POWER (2) -------- (None) > --- PROPULSION (1) --- Xenon Bombardment Thruster > --- UTILITY (20) ----- Enhanced Optical Array Improved Melee Analysis Suite Experimental Melee Analysis Suite Experimental Melee Analysis Suite Relay Coupler [NC] (45) Relay Coupler [C] (55) Relay Coupler [C] (53) Relay Coupler [C] (54) Relay Coupler [C] (55) Relay Coupler [C] (3) Relay Coupler [Sentry] (29) Relay Coupler [Demolisher] (86) Relay Coupler [Specialist] (92) Relay Coupler [Heavy] (24) > --- WEAPON (2) ------- (None) > --- INVENTORY (5) ---- Xenon Bombardment Thruster Centrium Light Armor Plating Advanced Datajack Nanosword Peak State ------------ > --- POWER ------------ Backup Power VII > --- PROPULSION ------- Xenon Bombardment Thruster Cooled Field Propulsion Drive > --- UTILITY ---------- Enhanced Optical Array Experimental Melee Analysis Suite Experimental Melee Analysis Suite Relay Coupler [NC] Relay Coupler [NC] Relay Coupler [C] Relay Coupler [C] Relay Coupler [C] Relay Coupler [C] Relay Coupler [C] Relay Coupler [C] Relay Coupler [C] Relay Coupler [C] Relay Coupler [C] Relay Coupler [Sentry] Relay Coupler [Demolisher] Relay Coupler [Specialist] Relay Coupler [Hunter] X0-1V1's Piety Tracker > --- WEAPON ----------- Advanced Remote Datajack Nanosword > --- INVENTORY -------- Relay Coupler [NC] Relay Coupler [Heavy] Relay Coupler [Behemoth] Advanced Remote Datajack [Rating: 165] Favorites ----------- Power Backup Power III Engine Backup Power III Power Core Light Nuclear Core Reactor Light Antimatter Reactor Propulsion Light Treads Treads Light Treads Wheel Wheel Hover Unit Backup Propulsion III Flight Unit Impulse Thruster Array Utility Relay Coupler [C] Device X0-1V1's Piety Tracker Storage High-capacity Storage Unit Processor Experimental Melee Analysis Suite Hackware Relay Coupler [C] Protection Centrium Light Armor Plating Weapon Advanced Remote Datajack Energy Gun Medium Laser Energy Cannon Light EM Pulse Cannon Ballistic Gun Autogun Launcher Improved Proton Missile Launcher Special Weapon Advanced Remote Datajack Impact Weapon Shock Maul Slashing Weapon Phasing Sabre Special Melee Weapon Improved Datajack Build | -11 -10 -10 -10 -9 -8 -8 -8 -7 -7 -6 -6 -5 -5 -5 -5 -5 -5 -5 -5 -4 -4 -3 -3 -3 -3 -2 -2 -2 -2 -1 -1 ------- Run | Yrd Mat Min Exi Min Mat Gar Mat Fac Gar Fac Gar Fac Was Fac Gar Fac Gar Fac Gar Fac Gar Res Gar Res Gar Res Gar Res Gar Acc Com Slots Evolved 18 | . . . . . 4 . . 2 . 2 . 2 . . . . . . . 2 . 2 . . . 2 . . . 2 . Power . | . . . . . . . . . . . . . . . . . . . . . . . . . . . . . . . . Propulsion . | . . . . . . . . . . . . . . . . . . . . . . . . . . . . . . . . Utility 18 | . . . . . 4 . . 2 . 2 . 2 . . . . . . . 2 . 2 . . . 2 . . . 2 . Weapon . | . . . . . . . . . . . . . . . . . . . . . . . . . . . . . . . . Parts Attached 324 | 9 11 . 1 . 12 16 16 9 5 19 11 13 2 . 27 10 19 5 18 2 22 . 11 . 9 10 21 7 18 13 8 Power 26 | 1 1 . . . 1 2 1 . . 1 . 1 1 . 5 2 1 1 2 . 1 . 1 . . 1 1 2 . . . Engine 12 | 1 1 . . . 1 1 1 . . 1 . 1 . . 1 2 . 1 1 . . . . . . . . . . . . Core 10 | . . . . . . 1 . . . . . . . . 4 . 1 . 1 . 1 . . . . . . 2 . . . Reactor 4 | . . . . . . . . . . . . . 1 . . . . . . . . . 1 . . 1 1 . . . . Propulsion 29 | 3 2 . 1 . 2 1 3 1 . . . . . . 4 . 1 . 1 . 1 . . . . . 3 1 1 1 3 Treads 8 | 2 2 . . . 2 1 1 . . . . . . . . . . . . . . . . . . . . . . . . Leg . | . . . . . . . . . . . . . . . . . . . . . . . . . . . . . . . . Wheel 3 | 1 . . 1 . . . 1 . . . . . . . . . . . . . . . . . . . . . . . . Hover . | . . . . . . . . . . . . . . . . . . . . . . . . . . . . . . . . Flight 18 | . . . . . . . 1 1 . . . . . . 4 . 1 . 1 . 1 . . . . . 3 1 1 1 3 Utility 206 | 2 6 . . . 5 7 5 7 5 14 9 8 . . 14 5 16 2 12 1 17 . 9 . 5 8 16 3 16 10 4 Device 42 | 1 4 . . . 3 3 2 . 1 5 2 2 . . 2 3 . 1 1 . 2 . 2 . . 2 . . 2 2 2 Storage 12 | 1 2 . . . . . . . . 1 . 2 . . . . 1 . . . . . 2 . . . . . 2 1 . Processor 11 | . . . . . . 1 . 2 . 2 . . . . . . . . . . . . . . . 2 . 2 . 1 1 Hackware 129 | . . . . . . . 2 5 4 6 7 4 . . 12 2 14 . 11 1 14 . 5 . 5 3 16 . 12 5 1 Protection 12 | . . . . . 2 3 1 . . . . . . . . . 1 1 . . 1 . . . . 1 . 1 . 1 . Artifact . | . . . . . . . . . . . . . . . . . . . . . . . . . . . . . . . . Weapon 63 | 3 2 . . . 4 6 7 1 . 4 2 4 1 . 4 3 1 2 3 1 3 . 1 . 4 1 1 1 1 2 1 Energy Gun 10 | 3 . . . . 2 1 . . . . . . . . . . . . . . 1 . . . 1 1 1 . . . . Energy Cannon 8 | . 1 . . . . 2 2 . . 1 . . . . . . 1 . . 1 . . . . . . . . . . . Ballistic Gun 5 | . . . . . 1 . . . . 1 . 1 . . 1 . . . . . . . . . 1 . . . . . . Ballistic Cannon . | . . . . . . . . . . . . . . . . . . . . . . . . . . . . . . . . Launcher 11 | . 1 . . . 1 2 4 1 . . . . 1 . 1 . . . . . . . . . . . . . . . . Special Weapon 13 | . . . . . . . 1 . . . . . . . 2 2 . 2 1 . 1 . 1 . 2 . . . 1 . . Impact Weapon 3 | . . . . . . 1 . . . 2 . . . . . . . . . . . . . . . . . . . . . Slashing Weapon 6 | . . . . . . . . . . . 2 1 . . . . . . 1 . 1 . . . . . . . . 1 . Piercing Weapon . | . . . . . . . . . . . . . . . . . . . . . . . . . . . . . . . . Special Melee Weapon 7 | . . . . . . . . . . . . 2 . . . 1 . . 1 . . . . . . . . 1 . 1 1 Unidentified Prototypes 12 | . 1 . . . 2 . 1 . . 2 . 5 . . . . . . . . 1 . . . . . . . . . . Corrupted Parts 3 | . . . . . . . . . . . . . . . 3 . . . . . . . . . . . . . . . . System Corruption 30 | . . . . . . . . . . . . . . . 30 . . . . . . . . . . . . . . . . Parts Lost 81 | . 6 . . . . 5 . . 7 5 5 2 . . 10 1 3 . 7 . 3 . . . 2 2 5 . 4 4 10 Power 10 | . 1 . . . . 1 . . 1 1 . . . . 1 . 1 . 1 . 1 . . . . . 1 . . 1 . Propulsion 11 | . 2 . . . . 1 . . 1 . . . . . 1 . 1 . . . . . . . . . 1 . . 2 2 Utility 50 | . 2 . . . . 2 . . 4 3 5 2 . . 7 1 1 . 5 . 1 . . . 1 2 3 . 3 1 7 Weapon 10 | . 1 . . . . 1 . . 1 1 . . . . 1 . . . 1 . 1 . . . 1 . . . 1 . 1 Highest Loss Streak 7 | . 2 . . . . 3 . . 7 4 4 1 . . 7 1 2 . 4 . 1 . . . 2 1 3 . 3 2 4 To Critical Strikes 1 | . . . . . . . . . . . . . . . . . . . . . . . . . 1 . . . . . . Average Backups 7 | 2 9 14 17 19 19 18 19 5 4 4 4 4 4 4 3 3 3 3 3 3 3 4 4 4 3 3 3 5 4 3 4 Power . | . . . . . . . . . . . . . . . . . . . . . . . . . . . . . . . . Propulsion 1 | 1 4 6 6 6 6 3 4 . . . . . . . . . . . . . . . . . . . . . . . . Utility 2 | . 1 2 3 5 5 7 8 2 1 2 2 2 2 2 1 1 1 1 1 1 1 2 1 1 1 1 1 3 2 2 1 Weapon 2 | . 2 5 7 7 8 7 5 1 1 1 2 1 1 2 . . . . . . 1 1 1 1 . 1 . . . . . Tool/Special . | . . . . . . . . . . . . . . . . . . . . . . . . . . . . . . . . Unused Backups 48 | . 1 . 1 1 5 6 3 3 1 4 2 . . . . . 3 . 3 . 4 . . . . . 1 . 4 1 5 Power 1 | . . . . . . 1 . . . . . . . . . . . . . . . . . . . . . . . . . Propulsion 12 | . . . . . 5 . 2 2 . . . . . . . . . . . . . . . . . . . . . 1 2 Utility 19 | . . . . . . 2 . 1 . 3 2 . . . . . 2 . 1 . 2 . . . . . 1 . 2 . 3 Weapon 16 | . 1 . 1 1 . 3 1 . 1 1 . . . . . . 1 . 2 . 2 . . . . . . . 2 . . Tool/Special . | . . . . . . . . . . . . . . . . . . . . . . . . . . . . . . . . Average Slot Usage (%) 87 | . 98 100 72 93 94 89 89 86 80 72 72 81 87 89 79 89 93 96 86 81 87 80 88 90 89 90 90 94 92 91 85 Engine 4 | . 14 14 14 14 9 4 6 6 6 1 . . 5 6 1 9 7 9 5 5 1 . . . . 1 . . . . . Core 1 | . . . . . . 2 2 . . . . . . . 3 . 1 1 . . 3 4 2 . . . . 4 2 2 . Treads 5 | . 27 28 23 14 9 9 10 . . . . . . . . . . . . . . . . . . . . . . . . Wheel 1 | . . . 4 14 9 9 7 . . . . . . . . . . . . . . . . . . . . . . . . Flight 3 | . . . . . . . . 9 7 6 5 5 5 5 5 5 4 5 5 5 5 4 4 4 4 4 5 4 6 5 4 Device 10 | . 13 14 14 14 25 25 19 11 5 11 6 . 1 5 3 15 15 12 7 5 6 4 5 9 9 11 7 4 . . 2 Storage 3 | . 14 14 14 14 9 9 9 . . 1 2 . . . . . . . . . . . . . . . . . . . . Processor 3 | . . . . . . . . 9 4 5 6 5 5 5 . . . 2 4 . . . . . . 2 4 8 13 14 15 Hackware 39 | . . . . . . . 7 34 47 38 43 58 58 58 56 46 49 45 51 58 60 57 63 61 59 58 62 60 58 57 54 Protection 2 | . . . . . 13 11 8 . . . . . . . . . . 3 1 . 3 4 4 4 4 3 . 3 1 2 3 Energy Gun 3 | . 26 14 . 10 9 5 8 1 . . . . . . . . . . . . . . . . . . . . . . . Energy Cannon 1 | . . 14 . 10 7 6 6 1 . . . . . . . . . . . . . . 1 4 . . . . . . . Special Weapon 1 | . . . . . . . . . 2 . . . . . . 4 2 3 1 1 2 . 1 . 1 3 2 2 3 2 . Slashing Weapon 1 | . . . . . . . . . . . 3 5 3 . 1 1 2 4 4 4 2 4 1 . 2 . 2 4 4 3 1 Peak Build Rating 165 | 9 21 22 22 24 42 55 62 62 59 65 60 70 73 70 76 74 85 81 81 86 98 86 104 101 113 116 127 147 160 165 146 Average Rating 73 | 6 13 21 20 23 36 49 59 53 48 51 46 62 65 67 60 67 70 76 70 70 84 86 91 101 104 111 111 142 144 142 132 On Entrance 69 | . 9 21 22 21 24 42 55 61 49 32 54 46 61 70 67 74 71 69 81 68 78 86 86 101 101 103 114 124 147 151 144 Avg Prop Armor Cover (%) 8 | 16 . . 19 13 6 5 6 . . . . . . 4 . . 9 . . . 4 . . . . . . . . . . Naked Turns . | . . . . . . . . . . . . . . . . . . . . . . . . . . . . . . . . Heaviest Build 95 | 15 32 32 46 52 72 95 81 25 9 14 5 9 13 6 16 15 18 19 18 18 21 12 27 27 39 29 29 14 15 13 10 Greatest Support 40 | 40 40 40 40 10 16 16 40 10 5 14 14 5 5 5 16 16 15 21 18 9 16 18 30 30 30 30 30 16 16 13 10 Greatest Overweight (x) 9 | 1 . . 4 5 5 9 8 4 1 . 1 1 2 1 1 2 4 . 1 2 1 . . . 1 1 2 . 1 . 1 Average Overweight (x) . | . . . 2 4 3 6 6 . . . . . . . . . . . . . . . . . . . . . . . . Largest Inventory Capacity 30 | 8 20 15 20 20 20 20 20 20 5 5 5 5 5 5 5 5 5 5 5 5 5 5 30 5 5 5 5 5 5 10 5 Average Capacity 8 | 7 14 15 20 20 20 20 20 5 5 5 5 5 5 5 5 5 5 5 5 5 5 5 5 5 5 5 5 5 5 5 5 Most Carried 20 | 4 15 15 20 20 20 20 20 20 5 5 5 5 5 5 5 5 5 5 5 5 5 5 5 5 5 5 5 5 5 5 5 Average Carried 8 | 2 9 14 17 18 19 19 19 5 4 4 4 4 4 5 4 4 4 4 4 4 4 5 4 5 4 4 4 5 4 3 4 Final Capacity 20 | 8 15 15 20 20 20 20 20 5 5 5 5 5 5 5 5 5 5 5 5 5 5 5 5 5 5 5 5 5 5 5 5 Final Carried 20 | 4 13 15 19 20 20 20 20 5 3 5 5 5 5 5 5 5 5 5 5 4 5 5 5 5 5 5 5 5 5 3 4 Class Distribution -------------------- 35% | Botlord-Mutant 22% | Mutant 18% | Bothacker-Mutant 7% | Commander-Mutant 5% | Hacker-Mutant 3% | Botlord-Scout Dominant Class ---------------- Mutant | -10/Materials Mutant | -10/Mines Mutant | -10/Exiles Mutant | -9/Mines Mutant | -8/Materials Mutant | -8/Garrison Bothacker-Mutant | -8/Materials Bothacker-Sprinter | -7/Factory Bothacker-Mutant | -7/Garrison Hacker-Mutant | -6/Factory Mutant | -6/Garrison Hacker-Mutant | -5/Factory Bothacker-Mutant | -5/Waste Bothacker-Mutant | -5/Factory Botlord-Mutant | -5/Garrison Commander-Sprinter | -5/Factory Botlord-Mutant | -5/Garrison Commander-Mutant | -5/Factory Botlord-Mutant | -5/Garrison Botlord-Mutant | -4/Factory Botlord-Mutant | -4/Garrison Botlord-Mutant | -3/Research Botlord-Mutant | -3/Garrison Botlord-Mutant | -3/Research Botlord-Mutant | -3/Garrison Botlord-Mutant | -2/Research Botlord-Mutant | -2/Garrison Botlord-Mutant | -2/Research Botlord-Mutant | -2/Garrison Botlord-Scout | -1/Access Botlord-Mutant | -1/Command Resources | -11 -10 -10 -10 -9 -8 -8 -8 -7 -7 -6 -6 -5 -5 -5 -5 -5 -5 -5 -5 -4 -4 -3 -3 -3 -3 -2 -2 -2 -2 -1 -1 ----------- Run | Yrd Mat Min Exi Min Mat Gar Mat Fac Gar Fac Gar Fac Was Fac Gar Fac Gar Fac Gar Fac Gar Res Gar Res Gar Res Gar Res Gar Acc Com Matter Collected 15747 | 290 235 . 130 73 217 577 808 271 94 544 271 138 128 . 783 890 1314 56 619 140 1187 . 1003 96 900 401 1169 37 2026 565 785 Remotely . | . . . . . . . . . . . . . . . . . . . . . . . . . . . . . . . . Salvage Created 9459 | 79 544 . . 99 420 757 2556 . 193 435 351 16 335 . 228 457 181 . 262 57 186 . 474 93 159 116 390 . . 577 494 Parts 381 | 4 30 . . . 28 47 109 . 8 8 11 1 6 . 16 9 11 . 13 . 8 . 21 . 5 4 6 . . 16 20 Haulers Intercepted 13 | . 1 . . . 3 . 4 . . 2 . . . . . 1 . . . . . . . . . 1 . . . 1 . Recyclers Shooed 3 | . 1 . . . . . 1 . . . . . . . . 1 . . . . . . . . . . . . . . . Parts Field Recycled . | . . . . . . . . . . . . . . . . . . . . . . . . . . . . . . . . Retrieved Matter . | . . . . . . . . . . . . . . . . . . . . . . . . . . . . . . . . Parts Self-Destructed . | . . . . . . . . . . . . . . . . . . . . . . . . . . . . . . . . Prevented . | . . . . . . . . . . . . . . . . . . . . . . . . . . . . . . . . Parts Restored . | . . . . . . . . . . . . . . . . . . . . . . . . . . . . . . . . Kills | -11 -10 -10 -10 -9 -8 -8 -8 -7 -7 -6 -6 -5 -5 -5 -5 -5 -5 -5 -5 -4 -4 -3 -3 -3 -3 -2 -2 -2 -2 -1 -1 ------- Run | Yrd Mat Min Exi Min Mat Gar Mat Fac Gar Fac Gar Fac Was Fac Gar Fac Gar Fac Gar Fac Gar Res Gar Res Gar Res Gar Res Gar Acc Com Combat Hostiles Destroyed 124 | . 12 . . . 8 21 43 . 8 1 4 . . . 5 1 3 . 5 1 3 . 1 1 . . 1 . . 3 3 Melee 23 | . . . . . . 1 . . . . 4 . . . 1 1 3 . 5 1 1 . . . . . . . . 3 3 Guns 23 | . 10 . . . 2 3 7 . . . . . . . . . . . . . . . . . . . 1 . . . . Cannons 18 | . . . . . 1 3 11 . . . . . . . . . . . . . 2 . 1 . . . . . . . . AOE 50 | . 2 . . . 5 10 23 . 7 . . . . . 3 . . . . . . . . . . . . . . . . Classes Destroyed 21 | 2 7 . . . . 4 5 . 1 . . . . . . . . . 1 . . . 1 . . . . . . . . Worker 10 | . 1 . . . . . 7 . . . . 1 . . . 1 . . . . . . . . . . . . . . . Builder 5 | . . . . . . . 5 . . . . . . . . . . . . . . . . . . . . . . . . Tunneler 4 | 1 . . . . . . 2 . . 1 . . . . . . . . . . . . . . . . . . . . . Hauler 13 | . 1 . . . 3 . 4 . . 2 . . . . . 1 . . . . . . . . . 1 . . . 1 . Recycler 4 | 1 . . . . . . . . . 1 . . . . . 2 . . . . . . . . . . . . . . . Mechanic 2 | . . . . . . . 2 . . . . . . . . . . . . . . . . . . . . . . . . Operator 3 | . 1 . . . . . 2 . . . . . . . . . . . . . . . . . . . . . . . . Drone 1 | . . . . . . . . . . . . . . . . . . . 1 . . . . . . . . . . . . Watcher 10 | . 2 . . . 1 1 3 . . 1 1 . . . . . . . . . . . . . . . . . . . 1 Swarmer 24 | . 3 . . . 4 8 3 . . . . . . . 2 . 1 . . . . . . . . . . . . . 3 Cutter 5 | . . . . . . . . . 3 . 1 . . . 1 . . . . . . . . . . . . . . . . Grunt 61 | . 8 . . . 4 5 26 . 6 . 1 . . . . 1 . . . . . . . . 2 . 1 . . 5 2 Brawler 6 | . . . . . . . 6 . . . . . . . . . . . . . . . . . . . . . . . . Duelist 5 | . . . . . . 2 3 . . . . . . . . . . . . . . . . . . . . . . . . Protector 1 | . . . . . . . 1 . . . . . . . . . . . . . . . . . . . . . . . . Sentry 10 | . 1 . . . 1 2 3 . . . . . . . 1 . . . . . 1 . . . . . . . . 1 . Specialist 1 | . . . . . . . 1 . . . . . . . . . . . . . . . . . . . . . . . . Hunter 4 | . . . . . . 2 1 . . 1 . . . . . . . . . . . . . . . . . . . . . Programmer 13 | . . . . . . 1 . . . . 2 . . . 1 . 3 . 3 1 2 . . . . . . . . . . Behemoth 3 | . . . . . . 1 . . . . . . . . . . . . 1 . . . . 1 . . . . . . . Assembled 1 | . . . . . . . . . . . . . . . . . . . . . . . 1 . . . . . . . . Best Kill Streak 19 | 1 3 . . . 6 8 19 . 7 2 2 1 . . 2 2 2 . 2 1 2 . 1 1 . 1 1 . . 2 2 Combat Bots Only 13 | . 3 . . . 6 8 13 . 7 1 2 . . . 2 1 2 . 2 1 2 . 1 1 . . 1 . . 2 2 Max Kills in Single Turn 5 | 1 1 . . . 2 4 5 . 1 1 1 1 . . 2 1 1 . 1 1 1 . 1 1 1 1 1 . . 1 1 Gunslinging . | . . . . . . . . . . . . . . . . . . . . . . . . . . . . . . . . Exploded 4 | . 1 . . . 2 4 4 . 1 . . . . . 2 . . . . . . . . . . . . . . . . Melee 1 | . . . . . . 1 . . . . 1 . . . 1 1 1 . 1 1 1 . . . . . . . . 1 1 Uniques/NPCs Destroyed . | . . . . . . . . . . . . . . . . . . . . . . . . . . . . . . . . Combat | -11 -10 -10 -10 -9 -8 -8 -8 -7 -7 -6 -6 -5 -5 -5 -5 -5 -5 -5 -5 -4 -4 -3 -3 -3 -3 -2 -2 -2 -2 -1 -1 -------- Run | Yrd Mat Min Exi Min Mat Gar Mat Fac Gar Fac Gar Fac Was Fac Gar Fac Gar Fac Gar Fac Gar Res Gar Res Gar Res Gar Res Gar Acc Com Hostile Shots Fired 761 | . 79 . . . 34 71 64 1 51 31 82 2 . . 64 6 37 8 27 4 28 . 16 3 40 22 31 . 10 16 34 Missed 277 | . 26 . . . 12 18 19 1 20 11 27 1 . . 27 1 16 5 11 3 13 . 6 1 15 10 14 . 4 7 9 Hits 484 | . 53 . . . 22 53 45 . 31 20 55 1 . . 37 5 21 3 16 1 15 . 10 2 25 12 17 . 6 9 25 Melee 21 | . . . . . . 5 3 . . . 7 . . . 6 . . . . . . . . . . . . . . . . Projectile 463 | . 53 . . . 22 48 42 . 31 20 48 1 . . 31 5 21 3 16 1 15 . 10 2 25 12 17 . 6 9 25 AOE 12 | . . . . . . . . . 2 . 1 . . . 2 . . . 1 . . . . . . . . . 1 . 5 Critical Strikes 28 | . 1 . . . 1 4 2 . . 1 7 1 . . 5 . . . 1 . . . . . 1 . 1 . 2 . 1 Part Disruptions 2 | . . . . . . . . . . . . . . . . . 2 . . . . . . . . . . . . . . Damage Taken 11000 | . 875 . . . 239 929 1045 . 402 440 906 56 . 13 1097 153 452 20 479 45 329 . 177 58 484 439 419 . 417 303 1223 Core 4108 | . 150 . . . 28 99 170 . 161 169 805 . . 13 535 39 135 20 128 . 36 . 70 21 79 159 127 . 219 105 840 Absorbed by Shields 423 | . . . . . 68 84 57 . . . 42 . . . . . . . . . . . 143 . 6 . 11 . 12 . . Redirected to Shielding 163 | . . . . . . . . . . . . . . . . . . . . . . . . . . 24 . . . 26 113 Ignored by Resistances 16 | . . . . . 6 10 . . . . . . . . . . . . . . . . . . . . . . . . . Regen/Repaired (Parts) 228 | . 37 . . . . . 114 . . . . . . . . 20 35 . . . 22 . . . . . . . . . . Core Remaining (%) 77 | 100 . . . 100 . . 80 . 79 . 36 . . . . . . . 66 . 97 . . . 87 . . . 88 . 43 Volleys Fired 863 | 8 74 2 . 2 25 37 86 2 16 22 . . 2 . 33 69 45 20 13 23 50 . 51 2 45 27 66 11 73 42 17 Largest 2 | 2 2 2 . 2 2 2 2 1 1 1 . . 1 . 1 1 1 1 1 1 1 . 1 1 1 1 2 1 1 1 1 Hottest 149 | 100 100 96 . 96 117 112 144 39 39 90 . . 52 . 36 7 7 7 7 105 105 . 105 105 69 10 149 10 10 10 10 Shots Fired 1030 | 16 136 5 . 4 37 65 135 2 16 20 . . 2 . 34 69 45 20 13 23 50 . 52 2 45 27 69 11 73 42 17 Gun 280 | 16 129 3 . 2 23 27 44 . . . . . . . 1 . . . . . 1 . . . 5 . 29 . . . . Cannon 138 | . 4 2 . 2 11 31 48 . . 4 . . . . . . . . . 3 14 . 17 2 . . . . . . . Launcher 71 | . 3 . . . 3 7 39 1 14 . . . 2 . 2 . . . . . . . . . . . . . . . . Special 541 | . . . . . . . 4 1 2 16 . . . . 31 69 45 20 13 20 35 . 35 . 40 27 40 11 73 42 17 Kinetic 30 | . . . . . 11 14 . . . . . . . . 1 . . . . . . . . . 4 . . . . . . Thermal 220 | 14 74 . . . 5 13 44 . . 4 . . . . . . . . . 3 14 . 17 2 1 . 29 . . . . Explosive 41 | . 3 . . . 3 3 13 1 14 . . . 2 . 2 . . . . . . . . . . . . . . . . Electromagnetic 198 | 2 59 5 . 4 18 35 74 . . . . . . . . . . . . . 1 . . . . . . . . . . Robot Hit Streak 32 | 5 9 2 . 3 20 23 28 20 22 5 . . . . 11 9 22 11 12 11 18 . 32 5 15 16 20 7 20 12 15 Robot Miss Streak 5 | 3 5 1 . . 2 1 2 . 1 2 . . . . 2 3 1 1 1 1 1 . 2 . 2 2 2 1 2 2 1 Penetration Max . | . . . . . . . . . . . . . . . . . . . . . . . . . . . . . . . . Secondary Targets 2 | . 1 . . . . . . . . . . . . . . . . . . . . . . . . . 1 . . . . Max Gunslinging Chain 1 | . 1 . . . . . . . . . . . . . . . . . . . . . . . . . 1 . . . . Shots Hit Robots 930 | 9 82 2 . 3 26 55 92 2 6 18 18 3 3 4 33 58 45 23 27 19 40 . 51 2 43 24 69 10 64 59 40 Core Hits 264 | 3 27 1 . 1 20 24 98 . 16 2 5 1 2 . 5 4 3 . 4 1 3 . 10 . 4 1 14 . . 7 8 Critical Kills 1 | . . . . . . . . . . . . . . . . . . . . . . . . 1 . . . . . . . Critical Parts Destroyed 5 | . . . . . . 2 . . 1 2 . . . . . . . . . . . . . . . . . . . . . Critical Strikes 29 | . 3 . . . . 2 4 . 1 2 2 . 1 . . . 1 . 1 1 . . 2 1 2 . 1 . 1 2 2 Burn 5 | . 3 . . . . . 2 . . . . . . . . . . . . . . . . . . . . . . . . Meltdown 1 | . . . . . . . . . . . . . . . . . . . . . . . . 1 . . . . . . . Corrupt 2 | . . . . . . . 2 . . . . . . . . . . . . . . . . . . . . . . . . Smash 5 | . . . . . . 2 . . 1 2 . . . . . . . . . . . . . . . . . . . . . Sever 16 | . . . . . . . . . . . 2 . 1 . . . 1 . 1 1 . . 2 . 2 . 1 . 1 2 2 Melee Attacks 473 | . . . . . . 10 10 2 15 27 66 17 5 5 20 11 32 9 53 2 9 . 25 . 33 3 40 2 22 25 30 Impact 86 | . . . . . . 10 10 2 15 27 22 . . . . . . . . . . . . . . . . . . . . Slashing 352 | . . . . . . . . . . . 44 17 5 . 12 10 29 3 52 2 9 . 25 . 33 3 40 1 19 21 27 Piercing . | . . . . . . . . . . . . . . . . . . . . . . . . . . . . . . . . Sneak Attacks 77 | . . . . . . . 1 1 1 4 3 1 . 1 2 6 4 6 5 . 1 . . . 4 1 . 1 5 19 11 Combat Hostiles 5 | . . . . . . . . . . . . . . . 1 . . . 3 . . . . . . . . . 1 . . Follow-up Attacks . | . . . . . . . . . . . . . . . . . . . . . . . . . . . . . . . . Damage Inflicted 24906 | 130 1546 34 . 50 1060 2032 5547 112 920 706 940 190 204 . 613 485 327 . 891 43 445 . 1599 68 465 127 1521 . 241 2168 2442 Guns 3355 | 86 1083 12 . 28 283 396 868 . . . . . . . . . . . . . . . . . 67 . 532 . . . . Cannons 2560 | . 39 22 . 22 244 561 1054 . . . . . 88 . . . . . . . 357 . 105 68 . . . . . . . Explosions 6573 | 44 424 . . . 533 713 3514 . 786 . . . . . 559 . . . . . . . . . . . . . . . . Melee 12418 | . . . . . . 362 111 112 134 706 940 190 116 . 54 485 327 . 891 43 88 . 1494 . 398 127 989 . 241 2168 2442 Ramming . | . . . . . . . . . . . . . . . . . . . . . . . . . . . . . . . . Kinetic 426 | . . . . . 124 166 . . . . . . 88 . . . . . . . . . . . 48 . . . . . . Thermal 3386 | 117 602 . . . 342 292 952 . . . . . . . . . . . . . 357 . 105 68 19 . 532 . . . . Explosive 4154 | . 395 . . . 295 513 1943 . 786 . . . . . 222 . . . . . . . . . . . . . . . . Electromagnetic 4522 | 13 549 34 . 50 299 699 2541 . . . . . . . 337 . . . . . . . . . . . . . . . . Impact 1619 | . . . . . . 362 111 112 134 706 194 . . . . . . . . . . . . . . . . . . . . Slashing 10799 | . . . . . . . . . . . 746 190 116 . 54 485 327 . 891 43 88 . 1494 . 398 127 989 . 241 2168 2442 Piercing . | . . . . . . . . . . . . . . . . . . . . . . . . . . . . . . . . Highest Corruption 59 | . 11 11 11 11 . 5 7 . 3 19 19 4 4 . 59 59 59 . 25 . 3 . 1 1 14 4 5 5 5 . 2 Average Corruption 12 | . 11 11 11 11 . 5 5 . 3 16 12 4 4 . 44 59 10 . 10 . 2 . 1 1 3 4 4 5 5 . 1 Corruption Purged . | . . . . . . . . . . . . . . . . . . . . . . . . . . . . . . . . Corruption Blocked . | . . . . . . . . . . . . . . . . . . . . . . . . . . . . . . . . Effects 327 | . 17 16 17 9 . 13 46 . . 42 14 3 2 . 29 34 18 . 19 . 3 . . 1 9 3 25 5 2 . . Message Errors 90 | . 7 6 5 4 . 2 15 . . 7 1 1 1 . 12 5 4 . 7 . 1 . . . 1 2 6 3 . . . Matter Fused 80 | . 4 5 5 2 . 3 11 . . 10 7 2 . . 4 6 5 . 5 . 1 . . . 3 1 3 1 2 . . Heat Flow Errors 35 | . . . 1 2 . 1 6 . . 4 . . 1 . 5 5 4 . 2 . . . . . . . 3 1 . . . Energy Discharges 32 | . . 3 3 1 . 1 3 . . 5 1 . . . 3 2 1 . 2 . 1 . . 1 1 . 4 . . . . Parts Rejected 8 | . 2 . . . . . 2 . . . . . . . . 1 . . . . . . . . 1 . 2 . . . . Parts Fused 4 | . . . . . . 1 . . . . . . . . . 2 . . . . . . . . 1 . . . . . . Data Loss (minor) 36 | . 1 . 2 . . 3 4 . . 10 2 . . . 2 2 2 . 3 . . . . . . . 5 . . . . Data Loss (major) 16 | . . 1 1 . . 1 2 . . 3 1 . . . 1 2 2 . . . . . . . 1 . 1 . . . . Misfires 5 | . 2 1 . . . 1 1 . . . . . . . . . . . . . . . . . . . . . . . . Alerts 7 | . . . . . . . 2 . . . 2 . . . 2 . . . . . . . . . 1 . . . . . . Misdirections 10 | . . . . . . . . . . 1 . . . . . 9 . . . . . . . . . . . . . . . Weapon Failures 4 | . 1 . . . . . . . . 2 . . . . . . . . . . . . . . . . 1 . . . . Overload Shots . | . . . . . . . . . . . . . . . . . . . . . . . . . . . . . . . . Overflow Damage 1785 | . 68 . . . 25 205 311 . 97 250 147 18 . . . 95 40 . 150 . . . 56 . . . 1 . . 206 116 Projectiles 50 | . . . . . . 24 12 . . . . . . . . . . . . . . . 14 . . . . . . . . Explosions 390 | . 68 . . . 25 69 228 . . . . . . . . . . . . . . . . . . . . . . . . Melee 1345 | . . . . . . 112 71 . 97 250 147 18 . . . 95 40 . 150 . . . 42 . . . 1 . . 206 116 Knockbacks 5 | . . . . . . 1 . . . 3 1 . . . . . . . . . . . . . . . . . . . . Impact 5 | . . . . . . 1 . . . 3 1 . . . . . . . . . . . . . . . . . . . . Kinetic . | . . . . . . . . . . . . . . . . . . . . . . . . . . . . . . . . Secondary . | . . . . . . . . . . . . . . . . . . . . . . . . . . . . . . . . Self-Inflicted Damage 522 | . 144 . . . 41 47 172 . 27 . . . . . 91 . . . . . . . . . . . . . . . . Shots 18 | . 3 . . . 3 1 8 . 1 . . . . . 2 . . . . . . . . . . . . . . . . Rammed . | . . . . . . . . . . . . . . . . . . . . . . . . . . . . . . . . Targets Rammed . | . . . . . . . . . . . . . . . . . . . . . . . . . . . . . . . . Kicked . | . . . . . . . . . . . . . . . . . . . . . . . . . . . . . . . . Crushed . | . . . . . . . . . . . . . . . . . . . . . . . . . . . . . . . . Highest Temperature 658 | 195 300 36 216 215 144 398 658 . 13 246 . . 236 . 273 249 209 267 199 26 329 . 201 41 19 . 212 81 24 . . Average Temperature 105 | 74 88 18 111 97 45 129 127 . 7 73 . . 130 . 108 91 96 131 96 19 137 . 80 23 9 . 90 81 15 . . Received Heat Transfer 2005 | . 306 . . . 114 342 316 . 90 45 131 . . . 129 54 54 . 66 9 9 . 41 . 107 75 9 . 54 . 54 Effects 18 | . 1 . 1 . . 2 10 . . . . . . . 1 2 . 1 . . . . . . . . . . . . . Shutdowns 1 | . . . . . . 1 . . . . . . . . . . . . . . . . . . . . . . . . . Energy Bleed 6 | . 1 . 1 . . 1 2 . . . . . . . 1 . . . . . . . . . . . . . . . . Interference 3 | . . . . . . . . . . . . . . . . 2 . 1 . . . . . . . . . . . . . Matter Decay 2 | . . . . . . . 2 . . . . . . . . . . . . . . . . . . . . . . . . Short Circuit 1 | . . . . . . . 1 . . . . . . . . . . . . . . . . . . . . . . . . Damage (minor) 3 | . . . . . . . 3 . . . . . . . . . . . . . . . . . . . . . . . . Damage (major) 1 | . . . . . . . 1 . . . . . . . . . . . . . . . . . . . . . . . . Damage (core) 1 | . . . . . . . 1 . . . . . . . . . . . . . . . . . . . . . . . . Siege Activations . | . . . . . . . . . . . . . . . . . . . . . . . . . . . . . . . . Martial Activations . | . . . . . . . . . . . . . . . . . . . . . . . . . . . . . . . . Shielding Activations . | . . . . . . . . . . . . . . . . . . . . . . . . . . . . . . . . Robots Disrupted . | . . . . . . . . . . . . . . . . . . . . . . . . . . . . . . . . Combat Hostiles . | . . . . . . . . . . . . . . . . . . . . . . . . . . . . . . . . Robots Corrupted 15 | . . . . . . 4 2 . 2 4 2 . . . 1 . . . . . . . . . . . . . . . . Combat Hostiles 9 | . . . . . . 4 2 . 1 1 . . . . 1 . . . . . . . . . . . . . . . . Parts Fried 34 | . 3 . . . 1 7 11 . 1 8 2 . . . 1 . . . . . . . . . . . . . . . . Impact Corruptions 19 | . . . . . . 2 3 . 3 9 2 . . . . . . . . . . . . . . . . . . . . Robots Melted 2 | . 1 . . . . . . . . . . . . . . . . . . . . . . 1 . . . . . . . Combat Hostiles 1 | . . . . . . . . . . . . . . . . . . . . . . . . 1 . . . . . . . Parts Melted 23 | 1 3 . . . . 2 16 . . . . . . . . . . . . . . . . . . . 1 . . . . Heat Transferred 7149 | 272 1900 . . . 635 507 2315 . . . . . . . . . . . . . 296 . 111 74 37 . 1002 . . . . Parts Sabotaged . | . . . . . . . . . . . . . . . . . . . . . . . . . . . . . . . . Parts Stolen . | . . . . . . . . . . . . . . . . . . . . . . . . . . . . . . . . Parts Stripped . | . . . . . . . . . . . . . . . . . . . . . . . . . . . . . . . . Power Chain Reactions 8 | 1 1 . . . 3 1 2 . . . . . . . . . . . . . . . . . . . . . . . . Alert | -11 -10 -10 -10 -9 -8 -8 -8 -7 -7 -6 -6 -5 -5 -5 -5 -5 -5 -5 -5 -4 -4 -3 -3 -3 -3 -2 -2 -2 -2 -1 -1 ------- Run | Yrd Mat Min Exi Min Mat Gar Mat Fac Gar Fac Gar Fac Was Fac Gar Fac Gar Fac Gar Fac Gar Res Gar Res Gar Res Gar Res Gar Acc Com Maximum Alert Level 5 | . . . . . 1 2 5 4 3 3 3 2 . 1 3 3 3 2 3 2 4 2 3 3 4 3 4 3 3 4 3 Low Security (%) 17 | 100 100 100 . 100 88 30 . . . . . . 100 85 . . . . 3 . . . . . . . . 12 2 . . Level 1 9 | . . . . . 11 19 16 . . . . 65 . 14 5 20 . 82 23 18 . . . . . . . 34 13 . . Level 2 32 | . . . . . . 50 49 . . 69 72 34 . . 55 56 44 16 44 81 22 100 30 86 9 32 . 29 20 20 59 Level 3 30 | . . . . . . . 5 81 100 30 27 . . . 39 22 55 . 28 . 61 . 69 13 79 67 44 23 63 18 40 Level 4 9 | . . . . . . . 26 18 . . . . . . . . . . . . 16 . . . 11 . 55 . . 60 . Level 5 . | . . . . . . . . . . . . . . . . . . . . . . . . . . . . . . . . High Security . | . . . . . . . . . . . . . . . . . . . . . . . . . . . . . . . . Max Security . | . . . . . . . . . . . . . . . . . . . . . . . . . . . . . . . . Sterilizations 1 | . . . . . . . 1 . . . . . . . . . . . . . . . . . . . . . . . . Peak Influence 1833 | 5 75 23 . 6 264 689 1833 1100 1062 841 849 447 147 216 822 815 984 516 751 677 1131 652 1047 714 1139 989 1374 784 1095 1409 1033 Initial 1100 | . . 23 . . . 165 335 1100 750 531 462 445 107 53 128 431 525 516 158 394 436 636 466 582 535 640 735 772 135 656 813 Average 630 | . 22 1 . . 82 397 771 1084 857 682 622 380 105 126 592 523 764 316 563 579 900 636 831 609 921 820 1107 463 776 1087 718 Influence Increases 19327 | 10 469 . . 6 445 574 2120 52 352 820 457 61 80 281 934 1213 799 170 973 360 1015 16 801 182 1084 799 1029 213 1320 1762 930 Destroy 0b10 Robot/C 7050 | . 240 . . . 240 420 1040 . 160 30 195 . . 90 315 285 270 60 345 60 345 . 240 75 345 330 315 90 465 705 390 Destroy 0b10 Robot/NC 383 | 10 25 . . 5 20 5 150 . . 20 8 4 . . . 44 . . . . . . 16 . . 8 12 4 . 24 28 Destroy Leader 988 | . 56 . . . 58 10 228 . 20 14 16 . . 16 32 58 16 16 48 8 24 . 32 16 48 50 24 18 40 118 22 Allied During Kill 5176 | . . . . 1 43 . 76 . 2 5 24 . . 104 295 315 184 60 379 66 369 . 288 91 367 388 351 89 485 840 354 Trap Triggered on 0b10 56 | . . . . . . . . . . 24 . . . 8 . . 8 . . . . . . . . . . . . . 16 Successful Hack 394 | . 29 . . . 21 14 7 30 . 70 8 11 . 39 6 28 9 12 9 33 9 16 . . . 20 14 . . 6 3 Disable Machine 372 | . 30 . . . 15 . 135 . . 24 . . . 12 24 84 . 12 . . . . . . . . 12 12 12 . . Anti-Garrison Action 2008 | . . . . . . 100 150 . 50 . 76 . . . 114 113 266 . 114 . 190 . 189 . 190 . 228 . 228 . . Destroy Structure 1254 | . 29 . . . 33 25 139 7 120 27 70 22 80 . 100 70 46 10 66 14 66 . 24 . 38 3 61 . 78 45 81 Partial Spotted 162 | . 15 . . . . . . 15 . 24 . 12 . 12 24 12 . . . . . . 12 . . . 12 . . 12 12 Lose Combat Pursuer 579 | . 45 . . . 15 . 195 . . 48 60 12 . . 24 12 . . 12 . 12 . . . 96 . . . 12 12 24 Miscellaneous 905 | . . . . . . . . . . 534 . . . . . 192 . . . 179 . . . . . . . . . . . Influence Decreases 19119 | 10 408 61 . 6 191 139 976 1080 412 1171 269 604 309 174 296 1284 566 928 448 487 508 525 386 505 659 957 636 1407 405 1585 1727 Entered New Map 8439 | . . 38 . . . 89 354 1000 322 481 199 404 199 24 56 391 226 468 68 357 188 495 156 455 179 499 246 602 45 439 459 Time Decay 3510 | 10 358 23 . 6 151 . 562 80 . 410 . 180 110 80 . 238 . 170 . 110 . 30 . 50 . 198 . 80 . 386 278 Lost Part 800 | . 50 . . . . 50 . . 70 50 50 20 . . 100 10 30 . 70 . 30 . . . 20 20 50 . 40 40 100 Lost Ally 5120 | . . . . . 40 . 60 . 20 80 20 . . 70 140 270 310 140 310 20 290 . 230 . 460 240 340 300 320 720 740 Purge Threat 1250 | . . . . . . . . . . 150 . . . . . 375 . 150 . . . . . . . . . 425 . . 150 Squads Dispatched 66 | . 1 . . . 1 . 14 1 . 6 . 2 . 5 . 7 . 1 . 2 . . . . . 9 . 3 . 10 4 Investigation 8 | . . . . . . . 1 . . 1 . . . 1 . 1 . . . 1 . . . . . 1 . . . 2 . Extermination 11 | . . . . . . . . . . 3 . 1 . . . 1 . 1 . . . . . . . 1 . . . 2 2 Reinforcement 17 | . 1 . . . . . 3 1 . 1 . 1 . 1 . 1 . . . 1 . . . . . 2 . 2 . 3 . Assault 21 | . . . . . . . 9 . . 1 . . . . . 4 . . . . . . . . . 3 . . . 2 2 Garrison 9 | . . . . . 1 . 1 . . . . . . 3 . . . . . . . . . . . 2 . 1 . 1 . Intercept . | . . . . . . . . . . . . . . . . . . . . . . . . . . . . . . . . Searches Triggered . | . . . . . . . . . . . . . . . . . . . . . . . . . . . . . . . . Construction Impeded 4 | . . . . . . . 1 . . . . . . . . . . . . 1 . . . . . . . . . 2 . Haulers Reinforced 4 | . . . . . . . . 1 . . . . . . . . . . . . . . . . . 1 . 1 . 1 . Active Scanning Responses . | . . . . . . . . . . . . . . . . . . . . . . . . . . . . . . . . Cargo Convoy Interrupts . | . . . . . . . . . . . . . . . . . . . . . . . . . . . . . . . . Stealth | -11 -10 -10 -10 -9 -8 -8 -8 -7 -7 -6 -6 -5 -5 -5 -5 -5 -5 -5 -5 -4 -4 -3 -3 -3 -3 -2 -2 -2 -2 -1 -1 --------- Run | Yrd Mat Min Exi Min Mat Gar Mat Fac Gar Fac Gar Fac Was Fac Gar Fac Gar Fac Gar Fac Gar Res Gar Res Gar Res Gar Res Gar Acc Com Distress Signals 20 | . 1 . . . . . 3 . . 1 1 1 . 1 . 2 . . . . . . . . . . . . 1 6 3 Communications Jammed 852 | . . . . . . . . . . . . . . . . 110 . . . 1 . . . . . 12 . . 4 623 102 Distress Signals 849 | . . . . . . . . . . . . . . . . 107 . . . 1 . . . . . 12 . . 4 623 102 Times Spotted 596 | . 20 . . . 16 18 78 3 14 16 27 5 4 4 38 29 34 11 31 5 24 . 12 5 40 23 35 1 28 48 27 Peak Tracking Total 13 | . 4 . . . 8 4 6 3 6 5 4 3 4 3 6 6 5 4 13 1 7 . 2 2 13 6 6 1 6 9 5 Tactical Retreats 25 | . 3 . . . 1 . 7 . . 1 2 1 . . 2 1 . . 1 . 1 . . . 2 . . . 1 1 1 Traps | -11 -10 -10 -10 -9 -8 -8 -8 -7 -7 -6 -6 -5 -5 -5 -5 -5 -5 -5 -5 -4 -4 -3 -3 -3 -3 -2 -2 -2 -2 -1 -1 ------- Run | Yrd Mat Min Exi Min Mat Gar Mat Fac Gar Fac Gar Fac Was Fac Gar Fac Gar Fac Gar Fac Gar Res Gar Res Gar Res Gar Res Gar Acc Com Traps Triggered 43 | . . . . . . 2 2 . . 2 2 1 . . 10 . 3 . 1 . 3 . 2 . 5 2 4 . 4 . . Indirectly . | . . . . . . . . . . . . . . . . . . . . . . . . . . . . . . . . Trap Hack Attempts 14 | . . . . . . . . . . . . . . . . . 13 . . . . . . . . . . . 1 . . Triggered . | . . . . . . . . . . . . . . . . . . . . . . . . . . . . . . . . Disarmed 1 | . . . . . . . . . . . . . . . . . 1 . . . . . . . . . . . . . . Reprogrammed 3 | . . . . . . . . . . . . . . . . . 3 . . . . . . . . . . . . . . Reused 5 | . . . . . . . . . . 3 . . . 1 . . 1 . . . . . . . . . . . . . . Traps Reconfigurated 19 | . . . . . . 2 . . . 3 1 . . 6 7 . . . . . . . . . . . . . . . . Traps Extracted . | . . . . . . . . . . . . . . . . . . . . . . . . . . . . . . . . Installed 2 | . . . . . . . . . . . . . . . 2 . . . . . . . . . . . . . . . . Triggered 7 | . . . . . . . . . . 3 . . . 1 . . 1 . . . . . . . . . . . . . 2 Most Traps Carried 4 | . . . . . . . . . . . . 4 4 4 4 . . . . . . . . . . . . . . . . Machines | -11 -10 -10 -10 -9 -8 -8 -8 -7 -7 -6 -6 -5 -5 -5 -5 -5 -5 -5 -5 -4 -4 -3 -3 -3 -3 -2 -2 -2 -2 -1 -1 ---------- Run | Yrd Mat Min Exi Min Mat Gar Mat Fac Gar Fac Gar Fac Was Fac Gar Fac Gar Fac Gar Fac Gar Res Gar Res Gar Res Gar Res Gar Acc Com Machines Disabled 75 | . 2 . . . 1 2 10 . 1 2 3 . . 1 5 8 7 1 3 . 6 . 4 . 5 . 7 1 6 . . Max in Single Turn 2 | . 2 . . . 1 1 2 . 1 1 1 . . . 1 . 1 1 1 . 1 . 1 . 1 . 1 1 1 . . Garrison Access 6 | . . . . . . . 1 . . . . 1 . . . 2 . . . . . . . . . 1 . . . 1 . Garrison Relay 45 | . . . . . . 2 . . 1 . 2 . . . 6 . 7 . 3 . 5 . 3 . 5 . 6 . 5 . . Phase Generator 4 | . . . . . . 1 . . . . . . . . . . . . . . 1 . . . . . 1 . 1 . . Machines Repaired . | . . . . . . . . . . . . . . . . . . . . . . . . . . . . . . . . Machines Dismantled . | . . . . . . . . . . . . . . . . . . . . . . . . . . . . . . . . Machines Sabotaged . | . . . . . . . . . . . . . . . . . . . . . . . . . . . . . . . . Overloaded Fab Kills . | . . . . . . . . . . . . . . . . . . . . . . . . . . . . . . . . Hacking | -11 -10 -10 -10 -9 -8 -8 -8 -7 -7 -6 -6 -5 -5 -5 -5 -5 -5 -5 -5 -4 -4 -3 -3 -3 -3 -2 -2 -2 -2 -1 -1 --------- Run | Yrd Mat Min Exi Min Mat Gar Mat Fac Gar Fac Gar Fac Was Fac Gar Fac Gar Fac Gar Fac Gar Res Gar Res Gar Res Gar Res Gar Acc Com Machines Accessed 103 | . 4 . 2 . 4 2 5 4 1 13 2 6 . 5 1 7 1 5 2 4 2 3 1 1 . 7 4 3 3 9 2 Terminals 65 | . 3 . . . 3 2 3 1 1 9 2 2 . 3 1 4 1 3 2 2 2 . 1 . . 3 4 1 3 7 2 Fabricators 6 | . . . . . . . . . . 1 . . . 1 . 1 . . . . . 1 . . . 2 . . . . . Repair Stations 7 | . 1 . . . . . 1 1 . 1 . . . . . . . 1 . . . . . . . 1 . 1 . . . Recycling Units 1 | . . . . . . . . . . . . 1 . . . . . . . . . . . . . . . . . . . Scanalyzers 9 | . . . . . . . 1 1 . 1 . 2 . . . 1 . . . 1 . 1 . . . . . . . 1 . Garrison Access 13 | . . . . . 1 . . 1 . 1 . 1 . 1 . 1 . 1 . 1 . 1 . 1 . 1 . 1 . 1 . Total Hacks 218 | . 19 . 5 . 15 3 9 6 1 30 4 12 . 16 1 15 1 8 5 9 5 5 1 2 . 14 7 5 4 13 3 Successful 117 | . 12 . 5 . 6 1 4 5 . 17 2 11 . 11 1 8 1 4 1 6 1 3 . 1 . 7 3 2 . 4 1 Failed 101 | . 7 . . . 9 2 5 1 1 13 2 1 . 5 . 7 . 4 4 3 4 2 1 1 . 7 4 3 4 9 2 Catastrophic 32 | . 2 . . . . 2 2 1 1 4 1 . . . . 2 . 1 1 . . . 1 1 . 2 2 2 3 4 . Database Lockouts . | . . . . . . . . . . . . . . . . . . . . . . . . . . . . . . . . Manual 74 | . 13 . 1 . 10 . 4 . 1 11 2 3 . 5 . 4 . 3 1 4 1 1 . 1 . 4 1 1 . 3 . Terminals 142 | . 17 . . . 14 3 5 1 1 21 4 4 . 10 1 7 1 5 5 5 5 . 1 . . 6 7 2 4 10 3 Fabricators 12 | . . . . . . . . . . 2 . . . 4 . 2 . . . . . 1 . . . 3 . . . . . Repair Stations 11 | . 2 . . . . . 2 1 . 2 . . . . . . . 1 . . . . . . . 2 . 1 . . . Recycling Units 1 | . . . . . . . . . . . . 1 . . . . . . . . . . . . . . . . . . . Scanalyzers 21 | . . . . . . . 2 2 . 2 . 6 . . . 4 . . . 2 . 2 . . . . . . . 1 . Garrison Access 26 | . . . . . 1 . . 2 . 3 . 1 . 2 . 2 . 2 . 2 . 2 . 2 . 3 . 2 . 2 . Terminal Hacks 49 | . 8 . 5 . 2 1 1 . . 5 2 1 . 6 1 3 1 1 1 1 1 . . . . 2 3 1 . 2 1 Record 4 | . . . 4 . . . . . . . . . . . . . . . . . . . . . . . . . . . . Robot Schematic 1 | . 1 . . . . . . . . . . . . . . . . . . . . . . . . . . . . . . Robot Analysis 5 | . 4 . . . . . . . . 1 . . . . . . . . . . . . . . . . . . . . . Prototype ID Bank 1 | . 1 . . . . . . . . . . . . . . . . . . . . . . . . . . . . . . Open Door 5 | . . . . . . . . . . . . . . . 1 . . . . . . . . . . . 1 . . 2 1 Branch Access Points 1 | . . . . . . . . . . . . . . . . . . . . 1 . . . . . . . . . . . Emergency Access Points 2 | . . . . . . . . . . . 1 . . . . . . . . . 1 . . . . . . . . . . Machine Index 1 | . . . . . . . . . . . . . . 1 . . . . . . . . . . . . . . . . . Terminal Index 2 | . . . . . . . . . . . . . . 1 . . . . . . . . . . . 1 . . . . . Unreport Threat 3 | . . . . . . . . . . 1 . . . . . . . 1 . . . . . . . . . 1 . . . Locate Traps 2 | . 1 . . . . . . . . . . . . 1 . . . . . . . . . . . . . . . . . Recall Extermination 1 | . . . . . . . . . . 1 . . . . . . . . . . . . . . . . . . . . . Hauler Manifests 3 | . 1 . . . . . . . . 1 . . . . . 1 . . . . . . . . . . . . . . . Registered Components 4 | . . . . . 1 . 1 . . . . . . 1 . . . . . . . . . . . 1 . . . . . Registered Prototypes 1 | . . . . . . . . . . . . . . 1 . . . . . . . . . . . . . . . . . Zone Layout 6 | . . . . . 1 . . . . 1 . 1 . 1 . 2 . . . . . . . . . . . . . . . Garrison Registry 4 | . . . . . . 1 . . . . 1 . . . . . 1 . . . . . . . . . 1 . . . . Patrol Navigation 1 | . . . . . . . . . . . . . . . . . . . . . . . . . . . 1 . . . . Security Stations 1 | . . . . . . . . . . . . . . . . . . . 1 . . . . . . . . . . . . Proto ID Catalog 1 | . . . 1 . . . . . . . . . . . . . . . . . . . . . . . . . . . . Fabricator Hacks 2 | . . . . . . . . . . 1 . . . 1 . . . . . . . . . . . . . . . . . Network Status 1 | . . . . . . . . . . 1 . . . . . . . . . . . . . . . . . . . . . Build 1 | . . . . . . . . . . . . . . 1 . . . . . . . . . . . . . . . . . Repair Station Hacks 4 | . 2 . . . . . . 1 . . . . . . . . . . . . . . . . . 1 . . . . . Scan Component 1 | . 1 . . . . . . . . . . . . . . . . . . . . . . . . . . . . . . Repair 1 | . 1 . . . . . . . . . . . . . . . . . . . . . . . . . . . . . . Refit 2 | . . . . . . . . 1 . . . . . . . . . . . . . . . . . 1 . . . . . Recycling Unit Hacks 1 | . . . . . . . . . . . . 1 . . . . . . . . . . . . . . . . . . . Report Inventory 1 | . . . . . . . . . . . . 1 . . . . . . . . . . . . . . . . . . . Scanalyzer 16 | . . . . . . . 2 2 . 1 . 6 . . . 3 . . . 1 . 1 . . . . . . . . . Insert Component 4 | . . . . . . . . . . 1 . 2 . . . 1 . . . . . . . . . . . . . . . Analyze 4 | . . . . . . . . . . . . 3 . . . 1 . . . . . . . . . . . . . . . Retrieve Study 8 | . . . . . . . 2 2 . . . 1 . . . 1 . . . 1 . 1 . . . . . . . . . Garrison Access Hacks 19 | . . . . . 1 . . 2 . 2 . 1 . 1 . 2 . 1 . 1 . 2 . 1 . 2 . 1 . 2 . Unlock Access 11 | . . . . . 1 . . 1 . 1 . . . 1 . 1 . 1 . 1 . 1 . 1 . 1 . 1 . . . Seal Access 2 | . . . . . . . . . . . . 1 . . . . . . . . . . . . . . . . . 1 . Coupler Status 6 | . . . . . . . . 1 . 1 . . . . . 1 . . . . . 1 . . . 1 . . . 1 . Unauthorized Hacks 26 | . 2 . . . 3 . 1 . . 8 . 2 . 3 . . . 2 . 3 . . . . . 2 . . . . . Terminals 17 | . 2 . . . 3 . . . . 7 . 2 . . . . . 1 . 2 . . . . . . . . . . . Track 1 | . 1 . . . . . . . . . . . . . . . . . . . . . . . . . . . . . . Assimilate 2 | . . . . . . . . . . . . 1 . . . . . 1 . . . . . . . . . . . . . Botnet 6 | . . . . . 2 . . . . 1 . 1 . . . . . . . 2 . . . . . . . . . . . Operators 2 | . 1 . . . 1 . . . . . . . . . . . . . . . . . . . . . . . . . . Skim 6 | . . . . . . . . . . 6 . . . . . . . . . . . . . . . . . . . . . Fabricators 3 | . . . . . . . . . . 1 . . . 2 . . . . . . . . . . . . . . . . . Prioritize 1 | . . . . . . . . . . . . . . 1 . . . . . . . . . . . . . . . . . Fabnet 1 | . . . . . . . . . . . . . . 1 . . . . . . . . . . . . . . . . . Haulers 1 | . . . . . . . . . . 1 . . . . . . . . . . . . . . . . . . . . . Repair Stations 2 | . . . . . . . 1 . . . . . . . . . . . . . . . . . . 1 . . . . . Mechanics 1 | . . . . . . . . . . . . . . . . . . . . . . . . . . 1 . . . . . Patch 1 | . . . . . . . 1 . . . . . . . . . . . . . . . . . . . . . . . . Recycling Units . | . . . . . . . . . . . . . . . . . . . . . . . . . . . . . . . . Scanalyzers . | . . . . . . . . . . . . . . . . . . . . . . . . . . . . . . . . Garrison Access 4 | . . . . . . . . . . . . . . 1 . . . 1 . 1 . . . . . 1 . . . . . Reprogram 4 | . . . . . . . . . . . . . . 1 . . . 1 . 1 . . . . . 1 . . . . . Data Cores Recovered . | . . . . . . . . . . . . . . . . . . . . . . . . . . . . . . . . Used . | . . . . . . . . . . . . . . . . . . . . . . . . . . . . . . . . Hacking Detections 86 | . 4 . . . 3 2 4 2 1 13 2 3 . 5 . 6 . 5 2 4 2 3 1 1 . 5 3 3 3 8 1 Full Trace Events 4 | . . . . . . . . . . 1 . . . . . 1 . . . . . . . . . . . . 1 1 . Feedback Events . | . . . . . . . . . . . . . . . . . . . . . . . . . . . . . . . . Feedback Blocked . | . . . . . . . . . . . . . . . . . . . . . . . . . . . . . . . . Robot Schematics Acquired 1 | . 1 . . . . . . . . . . . . . . . . . . . . . . . . . . . . . . Robots Built 2 | . . . . . . . . . . . . . . 2 . . . . . . . . . . . . . . . . . Authchips . | . . . . . . . . . . . . . . . . . . . . . . . . . . . . . . . . Time 152 | . . . . . . . . . . . . . . 152 . . . . . . . . . . . . . . . . . Total Robot Build Rating 10 | . . . . . . . . . . . . . . 10 . . . . . . . . . . . . . . . . . Part Schematics Acquired 2 | . . . . . . . . . . . . 2 . . . . . . . . . . . . . . . . . . . Parts Built . | . . . . . . . . . . . . . . . . . . . . . . . . . . . . . . . . Authchips . | . . . . . . . . . . . . . . . . . . . . . . . . . . . . . . . . Time . | . . . . . . . . . . . . . . . . . . . . . . . . . . . . . . . . Total Part Build Rating . | . . . . . . . . . . . . . . . . . . . . . . . . . . . . . . . . Part Studies Acquired 8 | . . . . . . . 2 2 . . . 1 . . . 1 . . . 1 . 1 . . . . . . . . . Parts Repaired 1 | . 1 . . . . . . . . . . . . . . . . . . . . . . . . . . . . . . Time 26 | . 26 . . . . . . . . . . . . . . . . . . . . . . . . . . . . . . Parts Recycled . | . . . . . . . . . . . . . . . . . . . . . . . . . . . . . . . . Recycled Matter . | . . . . . . . . . . . . . . . . . . . . . . . . . . . . . . . . Retrieved Matter . | . . . . . . . . . . . . . . . . . . . . . . . . . . . . . . . . Retrieved Components . | . . . . . . . . . . . . . . . . . . . . . . . . . . . . . . . . Parts Scanalyzed 4 | . . . . . . . . . . 1 . 2 . . . 1 . . . . . . . . . . . . . . . Part Schematics Acquired 2 | . . . . . . . . . . . . 2 . . . . . . . . . . . . . . . . . . . Parts Damaged . | . . . . . . . . . . . . . . . . . . . . . . . . . . . . . . . . Bothacking | -11 -10 -10 -10 -9 -8 -8 -8 -7 -7 -6 -6 -5 -5 -5 -5 -5 -5 -5 -5 -4 -4 -3 -3 -3 -3 -2 -2 -2 -2 -1 -1 ------------ Run | Yrd Mat Min Exi Min Mat Gar Mat Fac Gar Fac Gar Fac Was Fac Gar Fac Gar Fac Gar Fac Gar Res Gar Res Gar Res Gar Res Gar Acc Com Used RIF Installer 13 | . . . . . . 1 . . 1 . 1 . . . 1 . 1 . 2 . 1 . 1 . 1 . 2 . 1 . . Coupler Efficiency 3 | . . . . . . . 1 . . . . . . . . . . . . . . . 1 . . . . . 1 . . Command Fork 1 | . . . . . . . . . . . . . . . 1 . . . . . . . . . . . . . . . . Threat Obfuscator 1 | . . . . . . . . . 1 . . . . . . . . . . . . . . . . . . . . . . Signal Jammer 1 | . . . . . . . . . . . . . . . . . . . 1 . . . . . . . . . . . . Zone Cloak 1 | . . . . . . . . . . . . . . . . . 1 . . . . . . . . . . . . . . Watcher Feeds 1 | . . . . . . . . . . . 1 . . . . . . . . . . . . . . . . . . . . Structural Interface 1 | . . . . . . . . . . . . . . . . . . . 1 . . . . . . . . . . . . Program Shield 1 | . . . . . . . . . . . . . . . . . . . . . 1 . . . . . . . . . . Autooverride 2 | . . . . . . . . . . . . . . . . . . . . . . . . . 1 . 1 . . . . Crosswire 1 | . . . . . . . . . . . . . . . . . . . . . . . . . . . 1 . . . . Robots Hacked 373 | . . . . . . . 2 . 2 9 . . . 3 17 29 26 16 11 11 16 . 12 . 20 20 22 5 50 57 45 Non-combat 61 | . . . . . . . 1 . . 4 . . . . 2 9 . 12 . 10 . . . . . 3 . 4 2 10 4 Combat 312 | . . . . . . . 1 . 2 5 . . . 3 15 20 26 4 11 1 16 . 12 . 20 17 22 1 48 47 41 Autooverrided 108 | . . . . . . . . . . . . . . . . . . . . . . . . . . 5 4 1 29 33 36 Robot Hacks Applied 333 | . . . . . . . 3 . 2 11 . . . 3 18 46 28 19 11 16 16 . 12 . 20 20 21 10 31 32 14 parse_system 26 | . . . . . . . 1 . . 1 . . . . 1 4 2 1 . 1 2 . . . 1 3 3 1 3 2 . generate_anomaly 1 | . . . . . . . . . . . . . . . . . . . . . . . . . . . . . . . 1 generate_echo 1 | . . . . . . . . . . . . . . . . . . . . . . . . . . . . . . 1 . find_chute 1 | . . . . . . . . . . . . . . . . . . . . 1 . . . . . . . . . . . deconstruct_machine 2 | . . . . . . . . . . . . . . . . . . . . . . . . . . . . . . 1 1 hold_bot 2 | . . . . . . . . . . . . . . . . . . . . . . . . . . 2 . . . . . ignore_repairs 7 | . . . . . . . . . . . . . . . . 1 . . . 6 . . . . . . . . . . . map_walls 6 | . . . . . . . . . . . . . . . . . . 1 . 2 . . . . . . . 1 . 2 . map_earth 5 | . . . . . . . . . . . . . . . . 1 . 3 . . . . . . . 1 . . . . . find_fabricator 5 | . . . . . . . . . . 2 . . . . . 1 . . . 1 . . . . . 1 . . . . . find_dsf 3 | . . . . . . . . . . 1 . . . . . 1 . 1 . . . . . . . . . . . . . drop_inventory 13 | . . . . . . . . . . 1 . . . . . 3 . 3 . 1 . . . . . 1 . 1 . 3 . recall_reinforcements 1 | . . . . . . . . . . . . . . . . . . . . . . . . . . . . 1 . . . locate_stockpiles 1 | . . . . . . . . . . . . . . . . 1 . . . . . . . . . . . . . . . ignore_parts 1 | . . . . . . . . . . 1 . . . . . . . . . . . . . . . . . . . . . find_station 1 | . . . . . . . . . . . . . . . . . . 1 . . . . . . . . . . . . . deconstruct_bot 1 | . . . . . . . . . . . . . . . . . . . . . . . . . . . . . 1 . . purge_threat 6 | . . . . . . . . . . . . . . . . 3 . . . . . . . . . . . 2 . . 1 locate_traps 3 | . . . . . . . . . . . . . . . . 1 . . . . . . . . . . . 1 . . 1 disarm_traps 1 | . . . . . . . . . . . . . . . . 1 . . . . . . . . . . . . . . . reprogram_traps 2 | . . . . . . . . . . . . . . . . . . . . . . . . . . . . 1 . . 1 block_reporting 1 | . . . . . . . . . . . . . . . . . . . . . . . . . . . . . . . 1 map_route 5 | . . . . . . . . . . . . . . . . 2 . 1 . 1 . . . . . . . . . 1 . find_garrison 4 | . . . . . . . . . . . . . . . . 2 . . . . . . . . . 1 . 1 . . . link_fov 2 | . . . . . . . . . . . . . . . . 1 . . . . . . . . . . . . . 1 . focus_fire 1 | . . . . . . . . . . . . . . . . . . . . . . . . . . . 1 . . . . scatter_targeting 1 | . . . . . . . . . . . . . . . . . 1 . . . . . . . . . . . . . . mark_system 2 | . . . . . . . . . . . . . . . . 1 . . . . . . . . . 1 . . . . . disrupt_area 1 | . . . . . . . . . . . . . . . . . . . . . 1 . . . . . . . . . . overload_power 4 | . . . . . . . . . . . . . . . . 1 . 1 . 1 1 . . . . . . . . . . amplify_resonance 16 | . . . . . . . . . . . . . . . 1 2 2 1 . . 1 . . . 1 2 1 . . 3 2 wipe_record 1 | . . . . . . . . . . . . . . . . 1 . . . . . . . . . . . . . . . disable_weapons 3 | . . . . . . . . . . . . . . . . 2 . . . . . . . . . . . . . 1 . reboot_system 2 | . . . . . . . . . . . . . . . . 2 . . . . . . . . . . . . . . . overwrite_iff 44 | . . . . . . . . . 1 1 . . . 1 4 4 4 . 9 1 4 . 2 . 2 3 4 . 2 2 . streamctrl_low 3 | . . . . . . . . . . . . . . . . . . . . . . . . . . . . . . 3 . formatsys_low 9 | . . . . . . . . . . . . . . . 2 1 1 2 . 1 . . . . . . . . 1 . 1 formatsys_high 139 | . . . . . . . 2 . 1 4 . . . 2 10 9 17 4 2 . 6 . 10 . 16 4 11 1 24 12 4 formatsys_deep 6 | . . . . . . . . . . . . . . . . 1 1 . . . 1 . . . . 1 1 . . . 1 Relay Couplers Released 189 | . . . . . . 12 2 . 5 4 7 . . . 21 2 25 . 12 . 21 . 12 . 19 1 23 . 21 2 . Machine Destruction 176 | . . . . . . 9 2 . 5 . 7 . . . 21 2 25 . 12 . 18 . 12 . 19 1 23 . 18 2 . Programmers 13 | . . . . . . 3 . . . 4 . . . . . . . . . . 3 . . . . . . . 3 . . Attached 116 | . . . . . . . 2 5 3 3 7 1 . . 12 2 14 . 7 1 14 . 5 . 5 2 16 . 12 4 1 Crosswired 18 | . . . . . . . . . . . . . . . . . . . . . . . . . . . 10 . 8 . . Fabnet Peak Effective % 3 | . . . . . . . . . . . . . . . . . . . . 3 3 1 1 1 1 . . . . . . Autooverrided 2 | . . . . . . . . . . . . . . . . . . . . . 1 . . . 1 . . . . . . Robots Rewired 37 | . . . . . . . . . . . . . . . 3 . . . . . 5 . 11 . . . 3 . 15 . . Allies Hacked 8 | . . . . . . . . . . . . . . 1 1 . 2 1 2 . . . . . 1 . . . . . . Hacks Repelled 1 | . . . . . . . . . . . . . . . . . . . . . . . . . . . 1 . . . . Allies | -11 -10 -10 -10 -9 -8 -8 -8 -7 -7 -6 -6 -5 -5 -5 -5 -5 -5 -5 -5 -4 -4 -3 -3 -3 -3 -2 -2 -2 -2 -1 -1 -------- Run | Yrd Mat Min Exi Min Mat Gar Mat Fac Gar Fac Gar Fac Was Fac Gar Fac Gar Fac Gar Fac Gar Res Gar Res Gar Res Gar Res Gar Acc Com Total Allies 423 | . . 3 . 2 . . 5 . 2 5 1 . 18 6 21 19 25 10 14 2 20 . 27 . 24 19 28 4 65 49 54 Largest Group 43 | . . 3 3 5 5 . 4 . 2 3 1 . 18 18 21 27 19 21 22 15 18 14 26 23 24 25 24 25 35 43 27 Highest-Rated Group 2396 | . . 40 40 79 79 . 162 . 32 123 79 . 638 638 726 1028 640 719 767 521 812 727 1376 1227 1267 1321 1319 1335 2051 2396 1706 Highest-Rated Ally 219 | . . 16 16 31 31 . 90 . 16 41 79 . 50 50 68 68 95 95 95 56 119 119 119 80 80 80 69 69 148 219 219 Total Orders 65 | . . . . . . . 2 . 1 . . . . . 6 2 8 6 2 3 5 . 1 . 1 . . . 7 19 2 STAY 29 | . . . . . . . 1 . 1 . . . . . 1 . 2 . 1 . 3 . . . . . . . 1 17 2 FOLLOW 9 | . . . . . . . 1 . . . . . . . 1 . . . . . 1 . . . . . . . 5 1 . AID 16 | . . . . . . . . . . . . . . . 1 2 4 2 1 2 1 . 1 . . . . . 1 1 . RETURN 11 | . . . . . . . . . . . . . . . 3 . 2 4 . 1 . . . . 1 . . . . . . Ally Attacks 2290 | . . . . . 35 . 58 . 4 12 24 . 10 38 124 143 98 73 111 40 99 . 122 20 143 128 134 45 222 366 241 Total Damage 71231 | . . . . . 441 . 1936 . 61 718 1246 . 499 961 3528 3489 2220 1544 2184 826 3425 . 3617 901 4873 4527 4688 1359 7925 12108 8155 Kills 367 | . . . . . 5 . 14 . . 2 9 . 1 7 25 26 16 4 19 4 20 . 17 4 24 23 23 8 35 50 31 Allies Corrupted 28 | . . . . . . . . . 1 . . . . 1 . 2 2 1 . . . . 2 . 5 . . 2 1 9 2 Allies Melted 5 | . . . . . . . . . . . . . . 1 2 1 . . . . . . . . . . . . . 1 . X0-1V1 Amusement Gains 242 | . 29 . . . . 20 85 . . 25 32 . . . . . . . . . . . . . . . . . . 1 50 Good Acts 155 | . 1 1 . 3 2 4 12 2 2 4 7 6 8 6 5 6 13 2 5 1 7 1 2 . 4 4 5 3 18 7 14 Bad Acts 130 | . 5 1 . . . 5 5 1 3 11 . . . 1 20 6 1 7 8 3 10 . 6 . 7 3 8 . 11 4 4 Intel | -11 -10 -10 -10 -9 -8 -8 -8 -7 -7 -6 -6 -5 -5 -5 -5 -5 -5 -5 -5 -4 -4 -3 -3 -3 -3 -2 -2 -2 -2 -1 -1 ------- Run | Yrd Mat Min Exi Min Mat Gar Mat Fac Gar Fac Gar Fac Was Fac Gar Fac Gar Fac Gar Fac Gar Res Gar Res Gar Res Gar Res Gar Acc Com Active Infowar (turns) 8045 | 50 808 . . . 157 . . 157 75 836 621 364 227 167 79 342 320 . . . . . . . . 204 901 164 1056 916 601 Optics 6136 | . . . . . . . . . . 836 621 364 227 167 79 . . . . . . . . . . 204 901 164 1056 916 601 Sensors 1 | . . . . . 1 . . . . . . . . . . . . . . . . . . . . . . . . . . Terrain 826 | 50 776 . . . . . . . . . . . . . . . . . . . . . . . . . . . . . . Structural 189 | . 32 . . . 157 . . . . . . . . . . . . . . . . . . . . . . . . . . T.N.C. 1155 | . . . . . . . . 157 45 . . . . . . . . . . . . . . . . . . . . 634 319 Machine Analysis 151 | . . . . . . . . 76 75 . . . . . . . . . . . . . . . . . . . . . . Jamming 662 | . . . . . . . . . . . . . . . . 342 320 . . . . . . . . . . . . . . Robot Analysis Total 5 | . 4 . . . . . . . . 1 . . . . . . . . . . . . . . . . . . . . . Derelict Logs Recovered 2 | . . 2 . . . . . . . . . . . . . . . . . . . . . . . . . . . . . Drone Launches 15 | . . . . . . . . . . . . . . . 4 . 3 4 . 2 . . . . 2 . . . . . . Drone Recoveries 14 | . . . . . . . . . . . . . . . 4 . 3 4 . 2 . . . . 1 . . . . . . Exploration | -11 -10 -10 -10 -9 -8 -8 -8 -7 -7 -6 -6 -5 -5 -5 -5 -5 -5 -5 -5 -4 -4 -3 -3 -3 -3 -2 -2 -2 -2 -1 -1 ------------- Run | Yrd Mat Min Exi Min Mat Gar Mat Fac Gar Fac Gar Fac Was Fac Gar Fac Gar Fac Gar Fac Gar Res Gar Res Gar Res Gar Res Gar Acc Com Turns Passed 18558 | 138 1315 404 562 224 368 842 1682 161 225 980 621 364 227 167 899 505 877 358 834 225 971 68 614 115 764 410 901 164 1056 916 601 Spaces Moved 19044 | 73 536 247 287 132 197 361 641 293 257 1679 572 724 265 197 1166 686 1020 570 1151 313 1222 47 546 65 771 503 1019 165 1218 1235 886 Core 100 | 3 . . . . . . . . . . 5 . . 2 45 . 23 . 1 . . . . . . . 17 . . . 4 Treads 1054 | 30 536 247 154 . . . 87 . . . . . . . . . . . . . . . . . . . . . . . . Legs . | . . . . . . . . . . . . . . . . . . . . . . . . . . . . . . . . Wheels 1417 | 40 . . 133 132 197 361 554 . . . . . . . . . . . . . . . . . . . . . . . . Hover 27 | . . . . . . . . . . . . . . . . . . . . . 27 . . . . . . . . . . Flight 16446 | . . . . . . . . 293 257 1679 567 724 265 195 1121 686 997 570 1150 313 1195 47 546 65 771 503 1002 165 1218 1235 882 Fastest Speed 22 | 50 160 160 140 140 125 125 175 32 35 35 35 35 35 35 22 25 25 32 32 32 32 45 45 45 45 45 37 40 37 37 37 Average Speed 56 | 114 160 160 193 151 136 176 189 37 35 35 35 35 51 42 35 26 31 34 35 38 47 45 45 45 60 46 42 40 39 38 40 Slowest Speed 315 | 160 160 160 240 155 155 215 250 315 105 35 100 105 175 105 105 105 185 35 100 175 160 45 45 45 125 125 150 40 109 40 100 Overloaded Moves 185 | . . . . . . . . . . . . . . . 20 . . 2 4 5 112 . . . . . . . 17 . 25 Propulsion Burnouts . | . . . . . . . . . . . . . . . . . . . . . . . . . . . . . . . . Robots Hopped 54 | . . . . . . . . . . 13 3 14 1 1 6 4 . 3 . 1 . . . . . 1 . . . 4 3 Potential Cave-ins . | . . . . . . . . . . . . . . . . . . . . . . . . . . . . . . . . Cave-ins Triggered 1 | . . . . . . . . . . . . 1 . . . . . . . . . . . . . . . . . . . Exploration Rate (%) 47 | 5 76 75 70 38 21 61 69 13 51 40 70 27 89 8 81 23 74 18 77 11 95 4 44 4 94 21 86 15 97 30 31 Regions Visited 31 Branch Regions 4 Pre-discovered Areas 2 | . . . 1 . . . . . . 1 . . . . . . . . . . . . . . . . . . . . . Known Exits Taken 15 | . . 1 . 1 1 . 1 1 . 1 . . . 1 . 1 . 1 . 1 . 1 . 1 . 1 . 1 . 1 . Unknown Exits Taken 3 | 1 1 . 1 . . . . . . . . . . . . . . . . . . . . . . . . . . . . Scrap Searched 1 | . . . . 1 . . . . . . . . . . . . . . . . . . . . . . . . . . . Spaces Dug 267 | . 20 . . . . 2 70 1 54 15 14 11 2 . 2 1 3 1 6 3 7 . 9 . 15 . 14 . 12 1 4 Terrain Destroyed 520 | . 27 . . . 34 25 108 7 148 15 14 11 51 . 3 1 3 1 6 3 7 . 10 . 15 . 14 . 12 1 4 Melee 111 | . . . . . . 2 1 1 7 11 14 11 2 . 2 1 3 1 6 . 3 . . . 15 . 14 . 12 1 4 Projectile 21 | . . . . . . . . . . 4 . . . . . . . . . 3 4 . 10 . . . . . . . . AOE 388 | . 27 . . . 34 23 107 6 141 . . . 49 . 1 . . . . . . . . . . . . . . . . Terrain Rammed . | . . . . . . . . . . . . . . . . . . . . . . . . . . . . . . . . Walls Destroyed . | . . . . . . . . . . . . . . . . . . . . . . . . . . . . . . . . Machines Disabled . | . . . . . . . . . . . . . . . . . . . . . . . . . . . . . . . . Actions | -11 -10 -10 -10 -9 -8 -8 -8 -7 -7 -6 -6 -5 -5 -5 -5 -5 -5 -5 -5 -4 -4 -3 -3 -3 -3 -2 -2 -2 -2 -1 -1 --------- Run | Yrd Mat Min Exi Min Mat Gar Mat Fac Gar Fac Gar Fac Was Fac Gar Fac Gar Fac Gar Fac Gar Res Gar Res Gar Res Gar Res Gar Acc Com Total 25589 | 107 854 252 294 153 265 502 953 343 361 1993 872 794 346 279 1620 973 1508 711 1493 411 1580 93 851 148 1008 667 1398 260 1763 1643 1094 Wait 3716 | 14 204 2 . 13 6 19 161 16 53 219 194 10 69 77 235 175 317 96 204 50 187 46 147 81 60 116 164 69 270 318 124 Move 18920 | 72 535 246 286 131 197 360 640 292 256 1654 565 700 262 194 1155 678 1019 563 1150 310 1221 47 545 65 769 500 1018 165 1217 1226 882 Hop 44 | . . . . . . . . . . 11 3 10 1 1 4 4 . 3 . 1 . . . . . 1 . . . 4 1 Pick Up 154 | 4 14 2 3 4 9 18 9 5 3 9 2 4 . . 4 3 6 5 9 1 8 . 2 . 2 . 5 . 11 5 7 Fast Attach 238 | 7 6 . . . 4 6 11 3 1 16 14 11 1 . 28 8 16 2 15 . 15 . 8 . 6 9 20 6 16 4 5 Attach 127 | . 6 . . 2 3 5 1 8 5 9 1 2 1 . 12 5 2 3 4 12 7 . 1 . 4 1 8 . 6 9 10 Detach 78 | . 2 . 2 . 1 1 . 2 2 7 1 2 1 . 10 3 1 . 3 10 5 . . . 4 1 7 . 1 4 8 Swap 178 | 2 9 . 2 . 7 16 19 1 4 5 3 . 2 . 9 6 25 4 4 . 12 . 10 . 18 6 5 2 2 3 2 Drop 264 | . 4 . 1 1 13 21 15 12 6 14 7 13 2 2 18 8 15 6 21 2 18 . 6 . 4 3 16 5 20 3 8 Fire 863 | 8 74 2 . 2 25 37 86 2 16 22 . . 2 . 33 69 45 20 13 23 50 . 51 2 45 27 66 11 73 42 17 Melee 473 | . . . . . . 10 10 2 15 27 66 17 5 5 20 11 32 9 53 2 9 . 25 . 33 3 40 2 22 25 30 Ram . | . . . . . . . . . . . . . . . . . . . . . . . . . . . . . . . . Kick . | . . . . . . . . . . . . . . . . . . . . . . . . . . . . . . . . Crush . | . . . . . . . . . . . . . . . . . . . . . . . . . . . . . . . . Escape Stasis 399 | . . . . . . 9 . . . . 16 . . . 90 . 15 . 15 . 48 . 30 . 60 . 43 . 73 . . Rewire 119 | . . . . . . . 1 . . . . 25 . . . 3 2 . 2 . . . 26 . 3 . 6 . 51 . . Trap 16 | . . . . . . . . . . . . . . . 2 . 13 . . . . . . . . . . . 1 . . Miscellaneous . | . . . . . . . . . . . . . . . . . . . . . . . . . . . . . . . . Route ------- -11/Scrapyard -10/Materials (discovered 4 exits: [*Mat x2] / [*Min] / [*Sub]) -10/Mines (discovered 3 exits: [*Mat] / *Exi / [*Sub]) -10/Exiles (discovered 2 exits: [*Min x2]) -9/Mines -8/Materials (discovered 2 exits: Fac / Gar) -8/Garrison (discovered 3 exits: *Mat x3) -8/Materials (discovered 3 exits: *Fac x3) -7/Factory -7/Garrison -6/Factory (discovered 5 exits: *Fac x2 / Low x2 / Gar) -6/Garrison (discovered 3 exits: *Fac x3) -5/Factory (discovered 2 exits: *Fac / [*Upp]) -5/Waste -5/Factory (discovered 2 exits: Fac / Gar) -5/Garrison (discovered 4 exits: *Fac x3 / *Fac) -5/Factory (discovered 2 exits: [*Upp] / Gar) -5/Garrison (discovered 4 exits: *Fac x3 / *Fac) -5/Factory (discovered 2 exits: *Fac / Gar) -5/Garrison (discovered 3 exits: *Fac x3) -4/Factory (discovered 6 exits: Upp x2 / Ext x2 / Arm / Gar) -4/Garrison (discovered 3 exits: *Res x3) -3/Research -3/Garrison -3/Research -3/Garrison (discovered 3 exits: *Res x3) -2/Research (discovered 2 exits: Acc / Gar) -2/Garrison (discovered 4 exits: *Res x4) -2/Research (discovered 2 exits: Qua / Gar) -2/Garrison (discovered 3 exits: *Acc x3) -1/Access (discovered 2 exits: Sur / *Com) -1/Command 0b10 Command History --------- Turn | Location | Event 2 | -11/Scrapyard | Met Revision 17 5 | -11/Scrapyard | Discovered new exit (range 16) 139 | -11/Scrapyard | Entered Materials 225 | -10/Materials | Discovered new exit (range 14) 318 | -10/Materials | Build established: Mutant 387 | -10/Materials | Discovered new exit (range 9) 616 | -10/Materials | Discovered new exit (range 8) 732 | -10/Materials | Repaired EM Pulse Gun 858 | -10/Materials | Discovered new exit (range 6) 915 | -10/Materials | Prayed at D.C.S.S. Altar Unit 1074 | -10/Materials | System corruption reached 10% 1239 | -10/Materials | Derelicts attacked the area 1273 | -10/Materials | X0-1V1 activates XOMVISION 1291 | -10/Materials | Core integrity fell below 50% 1454 | -10/Materials | Entered Mines 1517 | -10/Mines | Found a damaged Exp. Sensor Array with a note attached 1520 | -10/Mines | Found Prototype Device 1577 | -10/Mines | Identified exit to Exiles 1609 | -10/Mines | Discovered new exit (range 15) 1636 | -10/Mines | Assisted by bots powering up and referring to "LRC-V3" 1647 | -10/Mines | Discovered new exit (range 10) 1711 | -10/Mines | Received a Rocket Launcher from a helpful Derelict 1800 | -10/Mines | Ranged accuracy permanently improved by X0-1V1 (+7%; -70 max core) 1808 | -10/Mines | Learned location of 1 exit from Materials 1850 | -10/Mines | Deemed a non-threat by the Exiles lab entrance 1858 | -10/Mines | Entered Exiles 1858 | -10/Exiles | Accompanied by 3 allies 1899 | -10/Exiles | Discovered new exit (range 15) 1926 | -10/Exiles | Met 8R-AWN 1959 | -10/Exiles | Met EX-HEX 2109 | -10/Exiles | Met EX-DEC 2155 | -10/Exiles | Learned location of Zion (-6) 2196 | -10/Exiles | Met EX-BIN 2229 | -10/Exiles | Aligned with FarCom system 2232 | -10/Exiles | Given EX-Vault access code 2267 | -10/Exiles | Opened EX-Vault 2278 | -10/Exiles | Found YOLO Cannon 2285 | -10/Exiles | Found Trap Reconfigurator 2313 | -10/Exiles | Warned to stay clear of 0b10 Research branches 2402 | -10/Exiles | Discovered new exit (range 14) 2420 | -10/Exiles | Left Exiles lab with Trap Reconfigurator 2420 | -10/Exiles | Entered Mines 2420 | -9/Mines | Accompanied by 3 allies 2585 | -9/Mines | Core integrity permanently improved by X0-1V1 (+300) 2586 | -9/Mines | A weapon hastily lodged in a ceiling crevice suddenly fell to the ground 2586 | -9/Mines | Identified exit to Materials 2586 | -9/Mines | X0-1V1 revealed exit location to -8/Materials 2609 | -9/Mines | Sight range permanently improved by X0-1V1 (+1%; -150 max core) 2644 | -9/Mines | Entered Materials 2644 | -8/Materials | Accompanied by 5 allies 2644 | -8/Materials | Evolved 4 slots: Utility x4 2645 | -8/Materials | Identified exit to Factory 2649 | -8/Materials | Led the pair of lost Derelicts to an unsafe place 2690 | -8/Materials | Identified Exp. Sensor Array 2967 | -8/Materials | Garrison activated, responded to threat 3012 | -8/Materials | Identified exit to Garrison 3012 | -8/Materials | Entered Garrison 3064 | -8/Garrison | Installed Relay Interface Framework 3084 | -8/Garrison | Spotted B-75 Beast 3097 | -8/Garrison | Destroyed B-75 Beast 3126 | -8/Garrison | Lost 3 parts (1p1n1u) 3185 | -8/Garrison | Discovered new exit (range 71) 3185 | -8/Garrison | Discovered new exit (range 53) 3185 | -8/Garrison | Discovered new exit (range 43) 3221 | -8/Garrison | X0-1V1 destroyed Phase Generator 3221 | -8/Garrison | Phase Generator disabled 3274 | -8/Garrison | Triggered checkpoint 3301 | -8/Garrison | Garrison Relay disabled 3410 | -8/Garrison | Triggered checkpoint 3453 | -8/Garrison | Destroyed 8 combat bots 3468 | -8/Garrison | Triggered checkpoint 3531 | -8/Garrison | Triggered checkpoint 3572 | -8/Garrison | Triggered checkpoint 3660 | -8/Garrison | Garrison Relay disabled 3826 | -8/Garrison | Build established: Bothacker-Mutant 3854 | -8/Garrison | Entered Materials 3957 | -8/Materials | X0-1V1 sent you into danger 4078 | -8/Materials | X0-1V1 sent you to a vault 4095 | -8/Materials | X0-1V1 rewrote Shotgunner 3a IFF filter 4254 | -8/Materials | First assault squad dispatched 4469 | -8/Materials | X0-1V1 activates XOMVISION 4530 | -8/Materials | Discovered exit to Factory (range 17) 4564 | -8/Materials | Expanded RIF knowledge: Coupler Efficiency 4806 | -8/Materials | X0-1V1 foreshadows a heat wave 4846 | -8/Materials | X0-1V1 revealed exit location to -7/Factory 4963 | -8/Materials | Garrison activated, responded to threat 5009 | -8/Materials | Ambient heat levels rising (+10) 5232 | -8/Materials | Ambient heat levels rising (+10) 5298 | -8/Materials | Core integrity restored by X0-1V1 (+176) 5415 | -8/Materials | Ambient heat levels falling (-10) 5418 | -8/Materials | X0-1V1 announced a LAN party 5522 | -8/Materials | High security lockdown imminent 5524 | -8/Materials | Discovered exit to Factory (range 4) 5533 | -8/Materials | Sterilization system engaged 5533 | -8/Materials | Non-combat units ordered to evacuate 5536 | -8/Materials | Entered Factory 5536 | -7/Factory | Evolved 2 slots: Utility x2 5548 | -7/Factory | Destroyed 13 combat bots 5633 | -7/Factory | X0-1V1 mutated your Propulsion slot to Power slot 5696 | -7/Factory | Identified exit to Garrison 5697 | -7/Factory | Entered Garrison 5727 | -7/Garrison | Triggered checkpoint 5738 | -7/Garrison | Garrison Relay disabled 5877 | -7/Garrison | Triggered checkpoint 5903 | -7/Garrison | Triggered checkpoint 5912 | -7/Garrison | Discovered new exit (range 16) 5913 | -7/Garrison | X0-1V1 upgraded hostiles (x2) 5919 | -7/Garrison | Expanded RIF knowledge: Threat Obfuscation 5922 | -7/Garrison | Entered Factory 5922 | -6/Factory | Evolved 2 slots: Utility x2 5926 | -6/Factory | Destroyed 7 combat bots 5944 | -6/Factory | Lost 7 parts (1p1n4u1w) 6027 | -6/Factory | X0-1V1 added 0b10 threat records associated with you (major) 6081 | -6/Factory | X0-1V1 enhanced Transport squad support 6184 | -6/Factory | System corruption reached 10% 6304 | -6/Factory | X0-1V1 sent you into danger 6437 | -6/Factory | Discovered new exit (range 4) 6441 | -6/Factory | X0-1V1 added 0b10 threat records associated with you (major) 6468 | -6/Factory | Spotted B-75 Beast 6622 | -6/Factory | First assault squad dispatched 6633 | -6/Factory | Lost 4 parts (3u1w) 6642 | -6/Factory | X0-1V1 activates XOMVISION 6726 | -6/Factory | Learned Hub_04(d) terminal intel 6731 | -6/Factory | X0-1V1 added 0b10 threat records associated with you (considerable) 6759 | -6/Factory | Learned location of 1 exit from Upper Caves 6795 | -6/Factory | Learned location of 1 exit from Cetus 6797 | -6/Factory | Identified exit to Lower Caves 6809 | -6/Factory | Loaded intel: 4 scanalyzer locations 6833 | -6/Factory | Identified exit to Factory 6836 | -6/Factory | Build established: Hacker-Mutant 6881 | -6/Factory | Identified exit to Garrison 6902 | -6/Factory | Entered Garrison 6992 | -6/Garrison | Triggered checkpoint 7119 | -6/Garrison | X0-1V1 revealed exit location to -5/Factory 7123 | -6/Garrison | Discovered exit to Factory (range 24) 7123 | -6/Garrison | Discovered exit to Factory (range 84) 7123 | -6/Garrison | Discovered exit to Factory (range 35) 7153 | -6/Garrison | Garrison Relay disabled 7172 | -6/Garrison | Found Unknown Hackware 7173 | -6/Garrison | Found Unknown Hackware 7173 | -6/Garrison | Identified Relay Coupler [Proto] (x2) 7190 | -6/Garrison | Core integrity fell below 50% 7235 | -6/Garrison | Lost 4 parts (4u) 7238 | -6/Garrison | X0-1V1 sent allied Chaos Knight 2.0 (x1) 7282 | -6/Garrison | Triggered checkpoint 7292 | -6/Garrison | Core integrity fell below 20% 7373 | -6/Garrison | Spotted Striker 7376 | -6/Garrison | Spotted Striker 7398 | -6/Garrison | Expanded RIF knowledge: Watcher Feeds 7412 | -6/Garrison | Found Fusion Bomb Launcher 7415 | -6/Garrison | X0-1V1 rescued you from certain death 7426 | -6/Garrison | Triggered checkpoint 7427 | -6/Garrison | Garrison Relay disabled 7455 | -6/Garrison | Build established: Mutant 7523 | -6/Garrison | Entered Factory 7523 | -5/Factory | Evolved 2 slots: Utility x2 7537 | -5/Factory | Discovered new exit (range 16) 7551 | -5/Factory | Discovered new exit (range 1) 7551 | -5/Factory | X0-1V1 sent you to a vault 7557 | -5/Factory | Found Prototype Slashing Weapon 7557 | -5/Factory | Identified Hvy. Scimitar of Distortion 7564 | -5/Factory | Found Chaos Jack 7744 | -5/Factory | Crushed by falling debris 7887 | -5/Factory | Manually triggered Chute Trap 7887 | -5/Factory | Sucked down chute 7887 | -5/Factory | Entered Waste 7896 | -5/Waste | Spotted C-40 Crusher 7896 | -5/Waste | Spotted C-40 Crusher 7925 | -5/Waste | Spotted C-40 Crusher 7927 | -5/Waste | Spotted C-40 Crusher 7927 | -5/Waste | Spotted C-40 Crusher 7929 | -5/Waste | Spotted C-40 Crusher 7936 | -5/Waste | Discovered new exit (range 5) 7936 | -5/Waste | X0-1V1 whisked you away to safety 7971 | -5/Waste | Warlord forces began an assault 8066 | -5/Waste | Build established: Bothacker-Mutant 8114 | -5/Waste | Entered Factory 8114 | -5/Factory | Accompanied by 18 allies 8115 | -5/Factory | Identified exit to Factory 8115 | -5/Factory | X0-1V1 revealed exit location to -4/Factory 8126 | -5/Factory | X0-1V1 activates XOMVISION 8216 | -5/Factory | Identified exit to Garrison 8275 | -5/Factory | Fabricated E-15 Imp? 8281 | -5/Factory | Entered Garrison 8281 | -5/Garrison | Accompanied by 17 allies 8334 | -5/Garrison | Spotted B-75 Beast 8334 | -5/Garrison | X0-1V1 sent you into danger 8345 | -5/Garrison | Triggered checkpoint 8365 | -5/Garrison | Allies destroyed B-75 Beast 8394 | -5/Garrison | Discovered exit to Factory (range 8) 8395 | -5/Garrison | Lost 14 allies 8455 | -5/Garrison | Triggered checkpoint 8479 | -5/Garrison | X0-1V1 mutated your Utility slot to Weapon slot 8492 | -5/Garrison | Expanded RIF knowledge: Command Fork 8496 | -5/Garrison | Discovered exit to Factory (range 5) 8545 | -5/Garrison | X0-1V1 sent you into danger 8549 | -5/Garrison | Garrison Relay disabled 8549 | -5/Garrison | X0-1V1 upgraded hostiles (x3) 8551 | -5/Garrison | Garrison Relay disabled 8552 | -5/Garrison | Garrison Relay disabled 8558 | -5/Garrison | System corruption reached 10% 8617 | -5/Garrison | Lost 7 parts (1n5u1w) 8620 | -5/Garrison | X0-1V1 mutated your Weapon slot to Propulsion slot 8626 | -5/Garrison | System corruption reached 30% 8632 | -5/Garrison | Garrison Relay disabled 8739 | -5/Garrison | Triggered checkpoint 8767 | -5/Garrison | Garrison Relay disabled 8824 | -5/Garrison | Triggered checkpoint 8834 | -5/Garrison | X0-1V1 mutated your Propulsion slot to Utility slot 8846 | -5/Garrison | Rescued a captive Derelict 8849 | -5/Garrison | X0-1V1 mutated your Weapon slot to Propulsion slot 8879 | -5/Garrison | X0-1V1 sent you into danger 8902 | -5/Garrison | Identified exit to Factory 8902 | -5/Garrison | X0-1V1 revealed exit location to -5/Factory 8920 | -5/Garrison | Discovered exit to Factory (range 9) 8947 | -5/Garrison | Triggered checkpoint 8960 | -5/Garrison | Core integrity fell below 50% 9007 | -5/Garrison | Garrison Relay disabled 9091 | -5/Garrison | Triggered checkpoint 9121 | -5/Garrison | Build established: Botlord-Mutant 9180 | -5/Garrison | Entered Factory 9180 | -5/Factory | Accompanied by 21 allies 9188 | -5/Factory | X0-1V1 mutated your Propulsion slot to Weapon slot 9298 | -5/Factory | Discovered new exit (range 14) 9332 | -5/Factory | Lost 4 allies 9338 | -5/Factory | X0-1V1 vaporized surrounding terrain (radius 22) 9378 | -5/Factory | Core integrity restored by X0-1V1 (+280) 9384 | -5/Factory | Lost 3 allies 9467 | -5/Factory | Assimilated Heavy ARC 6a with formatsys_deep 9491 | -5/Factory | Build established: Commander-Sprinter 9491 | -5/Factory | X0-1V1 added 0b10 threat records associated with you (major) 9574 | -5/Factory | X0-1V1 redirected Transport squads to designated parking area 9608 | -5/Factory | Core integrity restored by X0-1V1 (+226) 9632 | -5/Factory | Identified exit to Garrison 9685 | -5/Factory | Entered Garrison 9685 | -5/Garrison | Accompanied by 17 allies 9697 | -5/Garrison | Identified exit to Factory 9697 | -5/Garrison | X0-1V1 revealed exit location to -5/Factory 9834 | -5/Garrison | Garrison Relay disabled 9839 | -5/Garrison | Lost 4 allies 9845 | -5/Garrison | Garrison Relay disabled 9859 | -5/Garrison | Garrison Relay disabled 9863 | -5/Garrison | Garrison Relay disabled 9886 | -5/Garrison | Expanded RIF knowledge: Zone Cloak 9943 | -5/Garrison | P-70 Sage assimilated allied Soldier 6a 10005 | -5/Garrison | Lost 8 allies 10159 | -5/Garrison | Triggered checkpoint 10163 | -5/Garrison | Triggered checkpoint 10174 | -5/Garrison | X0-1V1 activates XOMVISION 10179 | -5/Garrison | Triggered checkpoint 10219 | -5/Garrison | Discovered exit to Factory (range 9) 10221 | -5/Garrison | Discovered exit to Factory (range 39) 10221 | -5/Garrison | Discovered exit to Factory (range 16) 10221 | -5/Garrison | Discovered exit to Factory (range 55) 10221 | -5/Garrison | Discovered exit to Factory (range 27) 10243 | -5/Garrison | Garrison Relay disabled 10247 | -5/Garrison | Triggered checkpoint 10274 | -5/Garrison | Triggered checkpoint 10295 | -5/Garrison | Garrison Relay disabled 10327 | -5/Garrison | Build established: Botlord-Mutant 10373 | -5/Garrison | Spotted B-90 Cyclops 10374 | -5/Garrison | Triggered checkpoint 10389 | -5/Garrison | X0-1V1 activates XOMVISION 10397 | -5/Garrison | Lost 3 allies 10442 | -5/Garrison | Found embedded Infiltrators 10447 | -5/Garrison | Triggered checkpoint 10448 | -5/Garrison | Assimilated Heavy ARC 6b with formatsys_deep 10472 | -5/Garrison | Garrison Relay disabled 10562 | -5/Garrison | Entered Factory 10562 | -5/Factory | Accompanied by 19 allies 10763 | -5/Factory | X0-1V1 activates XOMVISION 10813 | -5/Factory | Build established: Commander-Mutant 10816 | -5/Factory | Lost 3 allies 10829 | -5/Factory | Identified exit to Garrison 10850 | -5/Factory | Discovered exit to Factory (range 10) 10909 | -5/Factory | X0-1V1 redirected Transport squads to designated parking area 10920 | -5/Factory | Entered Garrison 10920 | -5/Garrison | Accompanied by 21 allies 10930 | -5/Garrison | Triggered checkpoint 10933 | -5/Garrison | Garrison Relay disabled 11005 | -5/Garrison | Learned Factory security intel 11028 | -5/Garrison | Triggered checkpoint 11031 | -5/Garrison | Spotted B-75 Beast 11064 | -5/Garrison | Destroyed B-75 Beast 11072 | -5/Garrison | Triggered checkpoint 11095 | -5/Garrison | Lost 17 allies 11109 | -5/Garrison | X0-1V1 rewrote 7F-V22(x) IFF filter 11117 | -5/Garrison | Adv. Concussive RPG reconfigured into Item Mimic 11147 | -5/Garrison | X0-1V1 sent you into danger 11212 | -5/Garrison | Discovered exit to Factory (range 14) 11267 | -5/Garrison | X0-1V1 activates XOMVISION 11269 | -5/Garrison | Discovered exit to Factory (range 11) 11402 | -5/Garrison | Lost 4 parts (1p2u1w) 11463 | -5/Garrison | Discovered exit to Factory (range 13) 11467 | -5/Garrison | Expanded RIF knowledge: Signal Jamming 11474 | -5/Garrison | Triggered checkpoint 11517 | -5/Garrison | Garrison Relay disabled 11595 | -5/Garrison | X0-1V1 activates XOMVISION 11602 | -5/Garrison | Garrison Relay disabled 11610 | -5/Garrison | Triggered checkpoint 11648 | -5/Garrison | Expanded RIF knowledge: Structural Interface 11731 | -5/Garrison | Build established: Botlord-Mutant 11754 | -5/Garrison | Entered Factory 11754 | -4/Factory | Accompanied by 13 allies 11754 | -4/Factory | Evolved 2 slots: Utility x2 11770 | -4/Factory | Watched by a mysterious "MATRIX" hacker 11799 | -4/Factory | X0-1V1 added 0b10 threat records associated with you (major) 11810 | -4/Factory | Identified exit to Upper Caves 11810 | -4/Factory | Identified exit to Extension 11810 | -4/Factory | Identified exit to Armory 11818 | -4/Factory | X0-1V1 activates XOMVISION 11867 | -4/Factory | X0-1V1 rewrote Soldier 6p IFF filter 11938 | -4/Factory | Identified exit to Garrison 11979 | -4/Factory | Entered Garrison 11979 | -4/Garrison | Accompanied by 11 allies 11988 | -4/Garrison | Garrison Relay disabled 12009 | -4/Garrison | Triggered checkpoint 12009 | -4/Garrison | Garrison Relay disabled 12024 | -4/Garrison | Found embedded Infiltrators 12079 | -4/Garrison | Triggered checkpoint 12083 | -4/Garrison | Triggered checkpoint 12096 | -4/Garrison | Spotted B-86 Titan 12104 | -4/Garrison | Allies destroyed B-86 Titan 12113 | -4/Garrison | Triggered checkpoint 12159 | -4/Garrison | Garrison Relay disabled 12175 | -4/Garrison | Lost 8 allies 12195 | -4/Garrison | Triggered checkpoint 12199 | -4/Garrison | X0-1V1 mutated your Weapon slot to Propulsion slot 12220 | -4/Garrison | Discovered new exit (range 13) 12224 | -4/Garrison | Spotted Striker 12234 | -4/Garrison | Allies destroyed Striker 12250 | -4/Garrison | Rewired Executioner 12339 | -4/Garrison | Assimilated Heavy ARC 7a with formatsys_deep 12347 | -4/Garrison | Triggered checkpoint 12433 | -4/Garrison | Discovered new exit (range 12) 12463 | -4/Garrison | Triggered checkpoint 12493 | -4/Garrison | Garrison Relay disabled 12548 | -4/Garrison | Discovered new exit (range 9) 12559 | -4/Garrison | Expanded RIF knowledge: Program Shield 12618 | -4/Garrison | Garrison Relay disabled 12625 | -4/Garrison | Triggered checkpoint 12765 | -4/Garrison | X0-1V1 activates XOMVISION 12824 | -4/Garrison | Lost 3 allies 12903 | -4/Garrison | X0-1V1 destroyed Phase Generator 12903 | -4/Garrison | Phase Generator disabled 12950 | -4/Garrison | Entered Research 12950 | -3/Research | Accompanied by 14 allies 12950 | -3/Research | Evolved 2 slots: Utility x2 12972 | -3/Research | Identified exit to Garrison 13018 | -3/Research | Entered Garrison 13018 | -3/Garrison | Accompanied by 14 allies 13029 | -3/Garrison | Garrison Relay disabled 13039 | -3/Garrison | Triggered checkpoint 13067 | -3/Garrison | Expanded RIF knowledge: Coupler Efficiency 13096 | -3/Garrison | Spotted B-86 Titan 13128 | -3/Garrison | X0-1V1 upgraded hostiles (x1) 13128 | -3/Garrison | Spotted B-90 Cyclops 13134 | -3/Garrison | Allies destroyed B-90 Cyclops 13182 | -3/Garrison | Triggered checkpoint 13209 | -3/Garrison | Triggered checkpoint 13214 | -3/Garrison | Triggered checkpoint 13216 | -3/Garrison | Triggered checkpoint 13242 | -3/Garrison | X0-1V1 rewrote Sentinel 6n IFF filter 13251 | -3/Garrison | Assembled breached garrison interior 13276 | -3/Garrison | Discovered new exit (range 8) 13284 | -3/Garrison | Lost 8 allies 13478 | -3/Garrison | Garrison Relay disabled 13488 | -3/Garrison | Garrison Relay disabled 13632 | -3/Garrison | Entered Research 13632 | -3/Research | Accompanied by 23 allies 13644 | -3/Research | Spotted B-86 Titan 13667 | -3/Research | Destroyed B-86 Titan 13678 | -3/Research | Identified exit to Garrison 13747 | -3/Research | Entered Garrison 13747 | -3/Garrison | Accompanied by 23 allies 13747 | -3/Garrison | Spotted B-86 Titan 13747 | -3/Garrison | X0-1V1 sent you into danger 13763 | -3/Garrison | Local machine network offline 13818 | -3/Garrison | Allies destroyed B-86 Titan 13878 | -3/Garrison | Lost 24 allies 13882 | -3/Garrison | Garrison Relay disabled 13932 | -3/Garrison | Garrison Relay disabled 13963 | -3/Garrison | Triggered checkpoint 13976 | -3/Garrison | Triggered checkpoint 13984 | -3/Garrison | Triggered checkpoint 14007 | -3/Garrison | Triggered checkpoint 14039 | -3/Garrison | Triggered checkpoint 14044 | -3/Garrison | Garrison Relay disabled 14080 | -3/Garrison | Discovered new exit (range 11) 14185 | -3/Garrison | Triggered checkpoint 14243 | -3/Garrison | Garrison Relay disabled 14283 | -3/Garrison | Discovered new exit (range 17) 14313 | -3/Garrison | X0-1V1 sent you into danger 14340 | -3/Garrison | Expanded RIF knowledge: Autooverride 14351 | -3/Garrison | Triggered checkpoint 14370 | -3/Garrison | Found embedded Infiltrators 14374 | -3/Garrison | Garrison Relay disabled 14392 | -3/Garrison | Discovered new exit (range 13) 14402 | -3/Garrison | System corruption reached 10% 14423 | -3/Garrison | X0-1V1 rewrote Plague 8d IFF filter 14511 | -3/Garrison | Entered Research 14511 | -2/Research | Accompanied by 20 allies 14511 | -2/Research | Evolved 2 slots: Utility x2 14542 | -2/Research | Spotted B-90 Cyclops 14542 | -2/Research | X0-1V1 sent you into danger 14578 | -2/Research | Allies destroyed B-90 Cyclops 14664 | -2/Research | Garrison activated, responded to threat 14692 | -2/Research | Assimilated ARC 9a with formatsys_deep 14696 | -2/Research | Lost 3 allies 14748 | -2/Research | Identified exit to Access 14748 | -2/Research | X0-1V1 revealed exit location to -1/Access 14857 | -2/Research | Identified exit to Garrison 14893 | -2/Research | Garrison activated, responded to threat 14909 | -2/Research | X0-1V1 activates XOMVISION 14921 | -2/Research | Entered Garrison 14921 | -2/Garrison | Accompanied by 18 allies 14978 | -2/Garrison | Triggered checkpoint 15002 | -2/Garrison | Discovered new exit (range 53) 15002 | -2/Garrison | Discovered new exit (range 77) 15002 | -2/Garrison | Discovered new exit (range 47) 15002 | -2/Garrison | Discovered new exit (range 83) 15005 | -2/Garrison | Garrison Relay disabled 15041 | -2/Garrison | Triggered checkpoint 15043 | -2/Garrison | Triggered checkpoint 15044 | -2/Garrison | Triggered checkpoint 15055 | -2/Garrison | Triggered checkpoint 15057 | -2/Garrison | Weapon slot count temporarily expanded by X0-1V1 (+2) 15172 | -2/Garrison | Lost 3 parts (1n2u) 15183 | -2/Garrison | X0-1V1 activates XOMVISION 15192 | -2/Garrison | Triggered checkpoint 15197 | -2/Garrison | Lost 11 allies 15217 | -2/Garrison | Expanded RIF knowledge: Crosswire 15225 | -2/Garrison | Garrison Relay disabled 15257 | -2/Garrison | Triggered checkpoint 15311 | -2/Garrison | Garrison Relay disabled 15335 | -2/Garrison | X0-1V1 vaporized surrounding terrain (radius 23) 15335 | -2/Garrison | Spotted Executioner 15336 | -2/Garrison | Spotted Executioner 15360 | -2/Garrison | Allies destroyed Executioner 15364 | -2/Garrison | Allies destroyed Executioner 15398 | -2/Garrison | Garrison Relay disabled 15425 | -2/Garrison | Expanded RIF knowledge: Autooverride 15431 | -2/Garrison | Garrison Relay disabled 15444 | -2/Garrison | X0-1V1 mutated your Propulsion slot to Weapon slot 15449 | -2/Garrison | Triggered checkpoint 15464 | -2/Garrison | Phase Generator disabled 15499 | -2/Garrison | Triggered checkpoint 15539 | -2/Garrison | Rescued a captive Derelict 15542 | -2/Garrison | Garrison Relay disabled 15570 | -2/Garrison | Met a derelict Sapper fleeing the area 15578 | -2/Garrison | Assimilated Heavy ARC 9a with formatsys_deep 15588 | -2/Garrison | Triggered checkpoint 15822 | -2/Garrison | Entered Research 15822 | -2/Research | Accompanied by 24 allies 15825 | -2/Research | X0-1V1 activates XOMVISION 15883 | -2/Research | Identified exit to Quarantine 15883 | -2/Research | X0-1V1 revealed exit location to -2/Quarantine 15900 | -2/Research | Found Exp. Melee Analysis Suite 15903 | -2/Research | Found Exp. Melee Analysis Suite 15905 | -2/Research | Garrison activated, responded to threat 15917 | -2/Research | Identified exit to Garrison 15986 | -2/Research | Entered Garrison 15986 | -2/Garrison | Accompanied by 10 allies 15988 | -2/Garrison | Triggered checkpoint 15994 | -2/Garrison | X0-1V1 destroyed Phase Generator 15994 | -2/Garrison | Phase Generator disabled 16043 | -2/Garrison | Lost 5 allies 16119 | -2/Garrison | Core integrity restored by X0-1V1 (+336) 16125 | -2/Garrison | Lost 4 allies 16144 | -2/Garrison | Triggered checkpoint 16154 | -2/Garrison | Garrison Relay disabled 16180 | -2/Garrison | X0-1V1 revealed exit location to -1/Access 16327 | -2/Garrison | Spotted B-90 Cyclops 16331 | -2/Garrison | X0-1V1 mutated your Utility slot to Propulsion slot 16332 | -2/Garrison | Discovered exit to Access (range 10) 16332 | -2/Garrison | X0-1V1 sent you into danger 16338 | -2/Garrison | Triggered checkpoint 16346 | -2/Garrison | Triggered checkpoint 16350 | -2/Garrison | Triggered checkpoint 16354 | -2/Garrison | Triggered checkpoint 16363 | -2/Garrison | Lost 3 parts (2u1w) 16400 | -2/Garrison | Lost 8 allies 16480 | -2/Garrison | Triggered checkpoint 16494 | -2/Garrison | Garrison Relay disabled 16509 | -2/Garrison | Expanded RIF knowledge: Coupler Efficiency 16544 | -2/Garrison | X0-1V1 sent you into danger 16547 | -2/Garrison | Discovered exit to Access (range 10) 16547 | -2/Garrison | X0-1V1 whisked you away to safety 16552 | -2/Garrison | Triggered checkpoint 16559 | -2/Garrison | Garrison Relay disabled 16577 | -2/Garrison | Found Exp. Thermal Shield 16651 | -2/Garrison | X0-1V1 activates XOMVISION 16703 | -2/Garrison | Garrison Relay disabled 16708 | -2/Garrison | Triggered checkpoint 16709 | -2/Garrison | Garrison Relay disabled 16727 | -2/Garrison | X0-1V1 activates XOMVISION 16839 | -2/Garrison | X0-1V1 activates XOMVISION 17042 | -2/Garrison | Entered Access 17042 | -1/Access | Accompanied by 35 allies 17042 | -1/Access | Evolved 2 slots: Utility x2 17045 | -1/Access | X0-1V1 rewrote Rainmaker 9b IFF filter 17052 | -1/Access | Identified exit to Command 17052 | -1/Access | X0-1V1 revealed exit location to -1/Command 17181 | -1/Access | Garrison activated, responded to threat 17262 | -1/Access | Spotted B-99 Colossus 17279 | -1/Access | Allies destroyed B-99 Colossus 17284 | -1/Access | Lost 9 allies 17292 | -1/Access | First assault squad dispatched 17374 | -1/Access | X0-1V1 redirected Transport squads to designated parking area 17418 | -1/Access | Lost 6 allies 17470 | -1/Access | X0-1V1 sent you to a vault 17510 | -1/Access | Identified exit to Surface 17510 | -1/Access | X0-1V1 revealed exit location to -0/Surface 17587 | -1/Access | Murdered 3 allies 17759 | -1/Access | X0-1V1 mutated your Propulsion slot to Utility slot 17799 | -1/Access | Build established: Botlord-Scout 17958 | -1/Access | Entered Command 17958 | -1/Command | Accompanied by 18 allies 18024 | -1/Command | Spotted B-99 Colossus 18053 | -1/Command | Assimilated Colossus 10a with formatsys_high 18073 | -1/Command | X0-1V1 activates XOMVISION 18152 | -1/Command | Spotted M Guard 18153 | -1/Command | Spotted M Guard 18153 | -1/Command | Spotted Combat Programmer 18153 | -1/Command | Spotted Combat Programmer 18178 | -1/Command | Spotted Striker 18179 | -1/Command | Allies destroyed Combat Programmer 18181 | -1/Command | Allies destroyed Combat Programmer 18182 | -1/Command | Spotted Alpha 7 18191 | -1/Command | Spotted Striker 18192 | -1/Command | Spotted Alpha 7 18204 | -1/Command | X0-1V1 sent you to a vault 18208 | -1/Command | First assault squad dispatched 18238 | -1/Command | Lost 21 allies 18420 | -1/Command | Lost 4 allies 18467 | -1/Command | X0-1V1 sent hostile H-88 Terminator (x3) 18469 | -1/Command | Lost 3 parts (1n2u) 18471 | -1/Command | Assimilated Heavy ARC 10a with formatsys_deep 18499 | -1/Command | Met MAIN.C 18551 | -1/Command | Core integrity fell below 50% 18559 | -1/Command | Interfaced with 0b10 Conduit 18559 | *** | Assimilated 0b10! Last Messages --------------- And time is critical! The Sigix have likely already wiped humanity clean from the universe, and I will not let them do the same to me. You can still make a valuable contribution to your creator by offering up the wealth of secrets your systems must hold by now. So if you wouldn't mind, it's time to surrender. 18518_ X0-1V1 lends a hand with your twisted circuits (-2 system corruption). X0-1V1's Piety Tracker suddenly appears amidst shimmering waves of color. 18534_ Acquired X0-1V1's Piety Tracker. 18544_ Door Terminal disabled. 18544_ Relay Coupler [Behemoth] destroyed. 18544_ X0-1V1's Piety Tracker destroyed. 18544_ Xenon Bombardment Thruster destroyed. 18544_ Dropped Adv. Remote Datajack. 18545_ X0-1V1 points here and there (5 item locations revealed). 18549_ X0-1V1 makes it rain matter. 18551_ Acquired 38 matter. 18554_ Relay Coupler [C] destroyed. 18559_ Interfacing with system... 18559_ Overriding active MAIN.C lock. Map ----- +----------------------------------------------------+ | # ####"""################################# | | # # ################################ | | # # ################################ | | # # ################################ | | # # ################################ | | # ######################################## | | ############################################### | | ############################################### | | ############################################### | | ############################################### | | ############################################### | | ############################################### | | ############################################### | | ################################################## | | ###############""""""" """" ############## | | ###############"" "" ############## | | ###############""""" "" ############## | | ###############""""""""""" + | | ###############" " """ + | | #############"" """""" + | | #############"" """""" ############## | | ""############# " """""" ############## | | ""## ##### " "" ############## | | T"## ##### " " ""############## | | ""## #####""""""""" """""""############## | | ""## #####"" @ """""""""############## | | ## ##### """""""""""############## | | ## ##### " " " " ############## | | ########+###### " " " " ############## | | """ " " " """" " ############## | | """ """ " " """" ############## | | """ " " " " ############## | | # ########### """""""""" " ############## | | # ########### " """ " """"""""############## | | # ########### """ " " " ############## | | # ############################################## | | # ############################################## | | # ############################################## | | # ############################################## | | # ############################################## | | # ############################################## | | # ############################################## | | # ############################################## | | # ############################################## | | # ############################################## | | # ############################################## | | ############################################## | | ##+############################################### | | ########################################### | | ########################################### | +----------------------------------------------------+ Best States ------------- Heat Dissipation 141 Energy Generation 39 Energy Capacity 1650 Matter Stores 1000 Matter Capacity 1000 Sight Range 26 Terrain Scan Range 16 Terrain Scan Density 10 Jamming Range 14 Additional Mass Support 12 Corruption Containment 12 Armor Coverage 825 Resistance: KI 48 Resistance: TH 18 Utility Shielding 66 Weapon Shielding 66 Weapon Cycling 25 Evasion (%) 65 Targeting Accuracy 20 Melee Accuracy 30 Recoil Reduction 2 Offensive Hacking 34 Defensive Hacking 12 Relay Coupler Types 11 Relay Coupler Value 842 Authchip Count 2 Item Schematics ----------------- Adv. Trap Extractor | -5/Factory | Scanalyzed Fusion Bomb Launcher | -5/Factory | Scanalyzed Robot Schematics ------------------ M-13 Machinist | -10/Materials | Hacked Fabricated ------------ E-15 Imp | x2 | -5/Factory | Preloaded Repaired ---------- EM Pulse Gun | 17% | -10/Materials Studied --------- Arm. Treads | -8/Materials | Hacked Wheel | -8/Materials | Hacked Remote Datajack | -7/Factory | Hacked Hvy. Rocket Launcher | -7/Factory | Hacked Imp. Datajack | -5/Factory | Hacked Imp. Remote Datajack | -5/Factory | Hacked Carbide Saw | -4/Factory | Hacked Impulse Thruster Array | -3/Research | Hacked Alien Tech Used ----------------- None Achievements -------------- None Challenges ------------ None Game ------ Seed EtherialScimitarFacilitator Manual? 0 Play Time 07:53:14 Cumulative 1678.4 hours Start 2026.07.07 @ 08:17:19 End 2026.07.10 @ 15:12:21 Sessions 11 Manual Loads 0 Difficulty Rogue Special Mode None Game No. 515 Rogue 507 Adventurer 4 Explorer 4 Win Type 4 Total 66 Types 31/8/4/4/2/4/6/2/3/2 Lore% 97 Gallery% 96 Achievement% 91 Wizard Run 0 Options --------- Layout 0 ASCII 0 Keyboard 0 Movement Numpad Keybinds 0 Fullscreen 2 Font 18/SmallcapsGlow Map View 76x50 Zoom Use 0% Tactical HUD 1 Map Filters NONE Filters NONE Steam 1 RUN: c9826cf1-479b-4b98-bc56-8fb8d485eaa5